{"text_format":"1","workbook":"xlsx","n_sheets":24,"sheets":["ÖSSZEFÜGGÉSEK","1.1.sz.mell.össz.","1.2sz.mell.közelező","1.3.sz.mell.önként.","2.1.sz.mell  ","2.2.sz.mell  ","ELLENŐRZÉS-1.sz.2.a.sz.2.b.sz.","3.sz.mell.  ","4.sz.mell.","5.sz.mell.","6.sz.mell.","7.sz.mell.","8. sz. mell. ","9.sz.mell","1.sz.táj.","2.sz.táj","3.sz.táj","4.sz.táj","5.sz.táj","6.sz.táj","7.sz.táj","8.sz.táj","9.sz.táj","10.sz.táj."],"not_rendered":{"charts":0,"images":0,"macros":0,"external_links":1,"defined_names":3,"comments":0,"pivot_tables":0},"unopened":[],"bounds":{"document_bytes":16777216,"sheet_cells":100000,"rows_first":2000,"rows_last":500,"rows_between":2000,"halvings":0,"cell_chars":16384,"cell_head_chars":4096},"cells_cut":0,"cells_raw":0,"read":"whole","date_system":"1900"}

{"sheet":"ÖSSZEFÜGGÉSEK","index":0,"n_rows":16,"n_cols":2,"rows_kept":16,"cut":false,"hidden":false,"merged":[]}
[]
["Költségvetési rendelet űrlapjainak összefüggései:"]
[]
[]
["2016. évi előirányzat BEVÉTELEK"]
[]
["1.1. sz. melléklet Bevételek táblázat C. oszlop 9 sora =","2.1. számú melléklet C. oszlop 13. sor + 2.2. számú melléklet C. oszlop 12. sor "]
["1.1. sz. melléklet Bevételek táblázat C. oszlop 17 sora =","2.1. számú melléklet C. oszlop 24. sor + 2.2. számú melléklet C. oszlop 25. sor "]
["1.1. sz. melléklet Bevételek táblázat C. oszlop 18 sora =","2.1. számú melléklet C. oszlop 25. sor + 2.2. számú melléklet C. oszlop 26. sor "]
[]
[]
[{"$f":"+CONCATENATE(LEFT(A5,4),\". évi előirányzat KIADÁSOK\")","v":"2016. évi előirányzat KIADÁSOK"}]
[]
["1.1. sz. melléklet Kiadások táblázat C. oszlop 3 sora =","2.1. számú melléklet E. oszlop 13. sor + 2.2. számú melléklet E. oszlop 12. sor "]
["1.1. sz. melléklet Kiadások táblázat C. oszlop 10 sora =","2.1. számú melléklet E. oszlop 24. sor + 2.2. számú melléklet E. oszlop 25. sor "]
["1.1. sz. melléklet Kiadások táblázat C. oszlop 11 sora =","2.1. számú melléklet E. oszlop 25. sor + 2.2. számú melléklet E. oszlop 26. sor "]

{"sheet":"1.1.sz.mell.össz.","index":1,"n_rows":159,"n_cols":5,"rows_kept":159,"cut":false,"hidden":false,"merged":[[156,0,156,1],[88,0,88,2],[0,0,0,2],[1,0,1,1],[89,0,89,1],[155,0,155,2]]}
["B E V É T E L E K"]
["1. sz. táblázat"]
["Sor-\nszám","Bevételi jogcím",{"$f":"+CONCATENATE(LEFT(ÖSSZEFÜGGÉSEK!A5,4),\".évi eredeti előirányzat\")","v":"2016.évi eredeti előirányzat"},{"$f":"+CONCATENATE(LEFT(ÖSSZEFÜGGÉSEK!B5,4),\"2016.évi módosított előirányzat\")","v":"2016.évi módosított előirányzat"},"Teljesített"]
["A","B","C","D","E "]
["1.","Önkormányzat működési támogatásai (1.1.+…+.1.6.)",{"$f":"+C6+C7+C8+C9+C10+C11","v":30112390},{"$f":"+D6+D7+D8+D9+D10+D11","v":36649712},{"$f":"+E6+E7+E8+E9+E10+E11","v":36649712}]
["1.1.","Helyi önkormányzatok működésének általános támogatása",12174237,13510578,13510578]
["1.2.","Önkormányzatok egyes köznevelési feladatainak támogatása",null,0]
["1.3.","Önkormányzatok szociális és gyermekjóléti feladatainak támogatása",16424233,16424233,16424233]
["1.4.","Önkormányzatok kulturális feladatainak támogatása",1513920,1513920,1513920]
["1.5.","Működési célú kvi támogatások és kiegészítő támogatások ",null,5200981,5200981]
["1.6.","Elszámolásból származó bevételek",null,0]
["2.","Működési célú támogatások államháztartáson belülről (2.1.+…+.2.5.)",{"$f":"+C13+C14+C15+C16+C17","v":9999024},{"$f":"+D13+D14+D15+D16+D17","v":12692090},{"$f":"+E13+E14+E15+E16+E17","v":19278673}]
["2.1.","Elvonások és befizetések bevételei"]
["2.2.","Működési célú garancia- és kezességvállalásból megtérülések "]
["2.3.","Működési célú visszatérítendő támogatások, kölcsönök visszatérülése "]
["2.4.","Működési célú visszatérítendő támogatások, kölcsönök igénybevétele"]
["2.5.","Egyéb működési célú támogatások bevételei ",9999024,12692090,19278673]
["2.6.","2.5.-ből EU-s támogatás"]
["3.","Felhalmozási célú támogatások államháztartáson belülről (3.1.+…+3.5.)",{"$f":"+C20+C21+C22+C23+C24","v":0},{"$f":"+D20+D21+D22+D23+D24","v":14252082},{"$f":"+E20+E21+E22+E23+E24","v":14252082}]
["3.1.","Felhalmozási célú önkormányzati támogatások",null,0]
["3.2.","Felhalmozási célú garancia- és kezességvállalásból megtérülések"]
["3.3.","Felhalmozási célú visszatérítendő támogatások, kölcsönök visszatérülése"]
["3.4.","Felhalmozási célú visszatérítendő támogatások, kölcsönök igénybevétele"]
["3.5.","Egyéb felhalmozási célú támogatások bevételei",null,14252082,14252082]
["3.6.","3.5.-ből EU-s támogatás"]
["4. ","Közhatalmi bevételek (4.1.+4.2.+4.3.+4.4.)",{"$f":"+C27+C31+C32+C33","v":32430000},{"$f":"+D27+D31+D32+D33","v":45370312},{"$f":"+E27+E31+E32+E33","v":34342442}]
["4.1.","Helyi adók  (4.1.1.+...+4.1.3.)",{"$f":"+C28+C29+C30","v":27500000},{"$f":"+D28+D29+D30","v":34427029},{"$f":"+E28+E29+E30","v":29800753}]
["4.1.1.","- Vagyoni típusú adók",6000000,7948566,6707174]
["4.1.2.","- Termékek és szolgáltatások adói"]
["4.1.3.","- Értékesítési és forgalmi adók (iparűzési adó)",21500000,26478463,23093579]
["4.2.","Gépjárműadó",4000000,9000000,3841170]
["4.3.","Egyéb áruhasználati és szolgáltatási adók",570000,820000,506150]
["4.4.","Egyéb közhatalmi bevételek",360000,1123283,194369]
["5.","Működési bevételek (5.1.+…+ 5.11.)",{"$f":"SUM(C35:C45)","v":19908496},{"$f":"SUM(D35:D45)","v":25325467},{"$f":"SUM(E35:E45)","v":14120157}]
["5.1.","Készletértékesítés ellenértéke",0,0]
["5.2.","Szolgáltatások ellenértéke",6200000,6200000,2337875]
["5.3.","Közvetített szolgáltatások értéke",700000,1779383,829596]
["5.4.","Tulajdonosi bevételek",2100000,2100000,1946176]
["5.5.","Ellátási díjak",3300000,7130789,6348810]
["5.6.","Kiszámlázott általános forgalmi adó ",2754000,3233031,2623900]
["5.7.","Általános forgalmi adó visszatérítése",4854496,4854496]
["5.8.","Kamatbevételek",null,27768,33800]
["5.9.","Egyéb pénzügyi műveletek bevételei"]
["5.10.","Biztosító által fizetett kártérítés"]
["5.11.","Egyéb működési bevételek",null,0]
["6.","Felhalmozási bevételek (6.1.+…+6.5.)",{"$f":"SUM(C47:C51)","v":0},{"$f":"SUM(D47:D51)","v":0},{"$f":"SUM(E47:E51)","v":0}]
["6.1.","Immateriális javak értékesítése"]
["6.2.","Ingatlanok értékesítése",0,0]
["6.3.","Egyéb tárgyi eszközök értékesítése",null,0]
["6.4.","Részesedések értékesítése"]
["6.5.","Részesedések megszűnéséhez kapcsolódó bevételek"]
["7. ","Működési célú átvett pénzeszközök (7.1. + … + 7.3.)",{"$f":"SUM(C53:C55)","v":0},{"$f":"SUM(D53:D55)","v":64310},{"$f":"SUM(E53:E55)","v":64310}]
["7.1.","Működési célú garancia- és kezességvállalásból megtérülések ÁH-n kívülről"]
["7.2.","Működési célú visszatérítendő támogatások, kölcsönök visszatér. ÁH-n kívülről"]
["7.3.","Egyéb működési célú átvett pénzeszköz",null,64310,64310]
["7.4.","7.3.-ból EU-s támogatás (közvetlen)"]
["8.","Felhalmozási célú átvett pénzeszközök (8.1.+8.2.+8.3.)",{"$f":"SUM(C58:C60)","v":1000000},{"$f":"SUM(D58:D60)","v":1445613},{"$f":"SUM(E58:E60)","v":1445613}]
["8.1.","Felhalm. célú garancia- és kezességvállalásból megtérülések ÁH-n kívülről"]
["8.2.","Felhalm. célú visszatérítendő támogatások, kölcsönök visszatér. ÁH-n kívülről",null,445613,445613]
["8.3.","Egyéb felhalmozási célú átvett pénzeszköz",1000000,1000000,1000000]
["8.4.","8.3.-ból EU-s támogatás (közvetlen)"]
["   9.","KÖLTSÉGVETÉSI BEVÉTELEK ÖSSZESEN: (1+…+8)",{"$f":"+C5+C12+C19+C26+C34+C46+C52+C57","v":93449910},{"$f":"+D5+D12+D19+D26+D34+D46+D52+D57","v":135799586},{"$f":"+E5+E12+E19+E26+E34+E46+E52+E57","v":120152989}]
["   10.","Hitel-, kölcsönfelvétel államháztartáson kívülről  (10.1.+10.3.)",{"$f":"SUM(C64:C66)","v":0},{"$f":"SUM(D64:D66)","v":0},{"$f":"SUM(E64:E66)","v":0}]
["10.1.","Hosszú lejáratú  hitelek, kölcsönök felvétele"]
["10.2.","Likviditási célú  hitelek, kölcsönök felvétele pénzügyi vállalkozástól",null,0]
["10.3.","   Rövid lejáratú  hitelek, kölcsönök felvétele",null,0]
["   11.","Belföldi értékpapírok bevételei (11.1. +…+ 11.4.)",{"$f":"SUM(C68:C71)","v":0},{"$f":"SUM(D68:D71)","v":50000},50000]
["11.1.","Forgatási célú belföldi értékpapírok beváltása,  értékesítése",null,50000,50000]
["11.2.","Forgatási célú belföldi értékpapírok kibocsátása"]
["11.3.","Befektetési célú belföldi értékpapírok beváltása,  értékesítése"]
["11.4.","Befektetési célú belföldi értékpapírok kibocsátása"]
["    12.","Maradvány igénybevétele (12.1. + 12.2.)",{"$f":"SUM(C73:C74)","v":11455631},{"$f":"SUM(D73:D74)","v":14399745},{"$f":"SUM(E73:E74)","v":14399745}]
["12.1.","Előző év költségvetési maradványának igénybevétele",11455631,14399745,14399745]
["12.2.","Előző év vállalkozási maradványának igénybevétele"]
["    13.","Belföldi finanszírozás bevételei (13.1. + … + 13.3.)",{"$f":"SUM(C76:C78)","v":0},{"$f":"SUM(D76:D78)","v":0},{"$f":"SUM(E76:E78)","v":1421796}]
["13.1.","Államháztartáson belüli megelőlegezések",null,null,1421796]
["13.2.","Államháztartáson belüli megelőlegezések törlesztése"]
["13.3.","Betétek megszüntetése",null,0]
["    14.","Külföldi finanszírozás bevételei (14.1.+…14.4.)",{"$f":"SUM(C80:C83)","v":0},{"$f":"SUM(D80:D83)","v":0}]
["    14.1.","Forgatási célú külföldi értékpapírok beváltása,  értékesítése"]
["    14.2.","Befektetési célú külföldi értékpapírok beváltása,  értékesítése"]
["    14.3.","Külföldi értékpapírok kibocsátása"]
["    14.4.","Külföldi hitelek, kölcsönök felvétele"]
["    15.","Váltóbevételek"]
["    16.","Adóssághoz nem kapcsolódó származékos ügyletek bevételei"]
["    17.","FINANSZÍROZÁSI BEVÉTELEK ÖSSZESEN: (10. + … +16.)",{"$f":"+C63+C67+C72+C75+C79+C85+C84","v":11455631},{"$f":"+D63+D67+D72+D75+D79+D85+D84","v":14449745},{"$f":"+E63+E67+E72+E75+E79+E85+E84","v":15871541}]
["    18.","KÖLTSÉGVETÉSI ÉS FINANSZÍROZÁSI BEVÉTELEK ÖSSZESEN: (9+17)",{"$f":"+C62+C86","v":104905541},{"$f":"+D62+D86","v":150249331},{"$f":"+E62+E86","v":136024530}]
[]
["K I A D Á S O K"]
["2. sz. táblázat",null,null,null,"Ezer forintban"]
["Sor-\nszám","Kiadási jogcímek",{"$f":"+C3","v":"2016.évi eredeti előirányzat"},{"$f":"+D3","v":"2016.évi módosított előirányzat"},"Teljesített"]
["A","B","C","C"]
["1.","   Működési költségvetés kiadásai (1.1+…+1.5.+1.18.)",{"$f":"C94+C95+C96+C97+C98","v":90508133},{"$f":"D94+D95+D96+D97+D98","v":120944364},{"$f":"E94+E95+E96+E97+E98+E111","v":104680916}]
["1.1.","Személyi  juttatások",22318954,29629833,29610129]
["1.2.","Munkaadókat terhelő járulékok és szociális hozzájárulási adó",4791948,7578279,7531579]
["1.3.","Dologi  kiadások",42696280,54989901,44374234]
["1.4.","Ellátottak pénzbeli juttatásai",8000000,4953100,4952200]
["1.5","Egyéb működési célú kiadások",12700951,23793251,18212774]
["1.6."," - az 1.5-ből: - Előző évi elszámolásból származó befizetések"]
["1.7.","   - Törvényi előíráson alapuló befizetések"]
["1.8.","   - Elvonások és befizetések",null,3280000,3279002]
["1.9.","   - Garancia- és kezességvállalásból kifizetés ÁH-n belülre"]
["1.10.","   -Visszatérítendő támogatások, kölcsönök nyújtása ÁH-n belülre"]
["1.11.","   - Visszatérítendő támogatások, kölcsönök törlesztése ÁH-n belülre"]
["1.12.","   - Egyéb működési célú támogatások ÁH-n belülre",11197000,12632667,12632188]
["1.13.","   - Garancia és kezességvállalásból kifizetés ÁH-n kívülre"]
["1.14.","   - Visszatérítendő támogatások, kölcsönök nyújtása ÁH-n kívülre"]
["1.15.","   - Árkiegészítések, ártámogatások"]
["1.16.","   - Kamattámogatások"]
["1.17.","   - Egyéb működési célú támogatások államháztartáson kívülre",1500000,7868659,2301584]
["1.18.","Tartalékok"]
["1.19."," - az 1.18-ból: - Általános tartalék",3951,11925]
["1.20.","   - Céltartalék",null,0]
["2.","   Felhalmozási költségvetés kiadásai (2.1.+2.3.+2.5.)",{"$f":"+C115+C117+C119","v":14397408},{"$f":"+D115+D117+D119","v":28101345},{"$f":"+E115+E117+E119","v":17068510}]
["2.1.","Beruházások",4627664,4560600,1920184]
["2.2.","2.1.-ből EU-s forrásból megvalósuló beruházás"]
["2.3.","Felújítások",9769744,23540745,15148326]
["2.4.","2.3.-ból EU-s forrásból megvalósuló felújítás"]
["2.5.","Egyéb felhalmozási kiadások"]
["2.6.","2.5.-ből        - Garancia- és kezességvállalásból kifizetés ÁH-n belülre"]
["2.7.","   - Visszatérítendő támogatások, kölcsönök nyújtása ÁH-n belülre"]
["2.8.","   - Visszatérítendő támogatások, kölcsönök törlesztése ÁH-n belülre"]
["2.9.","   - Egyéb felhalmozási célú támogatások ÁH-n belülre"]
["2.10.","   - Garancia- és kezességvállalásból kifizetés ÁH-n kívülre"]
["2.11.","   - Visszatérítendő támogatások, kölcsönök nyújtása ÁH-n kívülre"]
["2.12.","   - Lakástámogatás"]
["2.13.","   - Egyéb felhalmozási célú támogatások államháztartáson kívülre"]
["3.","KÖLTSÉGVETÉSI KIADÁSOK ÖSSZESEN (1+2)",{"$f":"+C93+C114","v":104905541},{"$f":"+D93+D114","v":149045709},{"$f":"+E93+E114","v":121749426}]
["4.","Hitel-, kölcsöntörlesztés államháztartáson kívülre (4.1. + … + 4.3.)",{"$f":"+C130+C131+C132","v":0},{"$f":"+D130+D131+D132","v":0},{"$f":"+E130+E131+E132","v":0}]
["4.1.","Hosszú lejáratú hitelek, kölcsönök törlesztése pénzügyi vállalkozásnak"]
["4.2.","Likviditási célú hitelek, kölcsönök törlesztése pénzügyi vállalkozásnak"]
["4.3.","Rövid lejáratú hitelek, kölcsönök törlesztése pénzügyi vállalkozásnak"]
["5.","Belföldi értékpapírok kiadásai (5.1. + … + 5.6.)",{"$f":"SUM(C134:C139)","v":0},{"$f":"SUM(D134:D139)","v":0}]
["5.1.","Forgatási célú belföldi értékpapírok vásárlása"]
["5.2.","Befektetési célú belföldi értékpapírok vásárlása"]
["5.3.","Kincstárjegyek beváltása"]
["5.4.","Éven belüli lejáratú belföldi értékpapírok beváltása"]
["5.5.","Belföldi kötvények beváltása"]
["5.6.","Éven túli lejáratú belföldi értékpapírok beváltása"]
["6.","Belföldi finanszírozás kiadásai (6.1. + … + 6.4.)",{"$f":"+C141+C142+C143+C144","v":0},{"$f":"+D141+D142+D143+D144","v":1203622},{"$f":"+E141+E142+E143+E144","v":1203622}]
["6.1.","Államháztartáson belüli megelőlegezések folyósítása"]
["6.2.","Államháztartáson belüli megelőlegezések visszafizetése",null,1203622,1203622]
["6.3.","Pénzeszközök lekötött betétként elhelyezése"]
["6.4.","Pénzügyi lízing kiadásai"]
["7.","Külföldi finanszírozás kiadásai (7.1. + … + 7.5.)",{"$f":"SUM(C146:C150)","v":0},{"$f":"SUM(D146:D150)","v":0}]
["7.1.","Forgatási célú külföldi értékpapírok vásárlása"]
["7.2.","Befektetési célú külföldi értékpapírok vásárlása"]
["7.3.","Külföldi értékpapírok beváltása"]
["7.4.","Hitelek, kölcsönök törlesztése külföldi kormányoknak nemz. Szervezeteknek"]
["7.5.","Hitelek, kölcsönök törlesztése külföldi pénzintézeteknek"]
["8.","Adóssághoz nem kapcsolódó származékos ügyletek"]
["9.","Váltókiadások"]
["10.","FINANSZÍROZÁSI KIADÁSOK ÖSSZESEN: (4.+…+9.)",{"$f":"+C129+C133+C140+C145+C151+C152","v":0},{"$f":"+D129+D133+D140+D145+D151+D152","v":1203622},{"$f":"+E129+E133+E140+E145+E151+E152","v":1203622}]
["11.","KIADÁSOK ÖSSZESEN: (3.+10.)",{"$f":"+C128+C153","v":104905541},{"$f":"+D128+D153","v":150249331},{"$f":"+E128+E153","v":122953048}]
[]
["KÖLTSÉGVETÉSI, FINANSZÍROZÁSI BEVÉTELEK ÉS KIADÁSOK EGYENLEGE"]
["3. sz. táblázat",null,null,null,"Ezer forintban"]
[1,"Költségvetési hiány, többlet ( költségvetési bevételek 9. sor - költségvetési kiadások 3. sor) (+/-)",{"$f":"+C62-C128","v":-11455631},{"$f":"+D62-D128","v":-13246123},{"$f":"+E62-E128","v":-1596437}]
["2.","Finanszírozási bevételek, kiadások egyenlege (finanszírozási bevételek 17. sor - finanszírozási kiadások 10. sor)\n (+/-)",{"$f":"+C86-C153","v":11455631},{"$f":"+D86-D153","v":13246123},{"$f":"+E86-E153","v":14667919}]

{"sheet":"1.2sz.mell.közelező","index":2,"n_rows":159,"n_cols":5,"rows_kept":159,"cut":false,"hidden":false,"merged":[[155,0,155,2],[156,0,156,1],[0,0,0,2],[1,0,1,1],[88,0,88,2],[89,0,89,1]]}
["B E V É T E L E K"]
["1. sz. táblázat"]
["Sor-\nszám","Bevételi jogcím",{"$f":"+CONCATENATE(LEFT(ÖSSZEFÜGGÉSEK!A5,4),\". évi eredeti előirányzat\")","v":"2016. évi eredeti előirányzat"},{"$f":"+CONCATENATE(LEFT(ÖSSZEFÜGGÉSEK!B5,4),\"2016.évimódosítottelőirányzat\")","v":"2016.évimódosítottelőirányzat"},"Teljesített"]
["A","B","C","D","E "]
["1.","Önkormányzat működési támogatásai (1.1.+…+.1.6.)",{"$f":"+C6+C7+C8+C9+C10+C11","v":30112390},{"$f":"+D6+D7+D8+D9+D10+D11","v":36649712},{"$f":"+E6+E7+E8+E9+E10+E11","v":36649712}]
["1.1.","Helyi önkormányzatok működésének általános támogatása",12174237,13510578,13510578]
["1.2.","Önkormányzatok egyes köznevelési feladatainak támogatása"]
["1.3.","Önkormányzatok szociális és gyermekjóléti feladatainak támogatása",16424233,16424233,16424233]
["1.4.","Önkormányzatok kulturális feladatainak támogatása",1513920,1513920,1513920]
["1.5.","Működési célú kvi támogatások és kiegészítő támogatások ",null,5200981,5200981]
["1.6.","Elszámolásból származó bevételek"]
["2.","Működési célú támogatások államháztartáson belülről (2.1.+…+.2.5.)",{"$f":"+C13+C14+C15+C16+C17","v":9999024},{"$f":"+D13+D14+D15+D16+D17","v":12692090},{"$f":"+E13+E14+E15+E16+E17","v":19278673}]
["2.1.","Elvonások és befizetések bevételei"]
["2.2.","Működési célú garancia- és kezességvállalásból megtérülések "]
["2.3.","Működési célú visszatérítendő támogatások, kölcsönök visszatérülése "]
["2.4.","Működési célú visszatérítendő támogatások, kölcsönök igénybevétele"]
["2.5.","Egyéb működési célú támogatások bevételei ",9999024,12692090,19278673]
["2.6.","2.5.-ből EU-s támogatás"]
["3.","Felhalmozási célú támogatások államháztartáson belülről (3.1.+…+3.5.)",{"$f":"+C20+C21+C22+C23+C24","v":0},{"$f":"+D20+D21+D22+D23+D24","v":14252082},{"$f":"+E20+E21+E22+E23+E24","v":14252082}]
["3.1.","Felhalmozási célú önkormányzati támogatások"]
["3.2.","Felhalmozási célú garancia- és kezességvállalásból megtérülések"]
["3.3.","Felhalmozási célú visszatérítendő támogatások, kölcsönök visszatérülése"]
["3.4.","Felhalmozási célú visszatérítendő támogatások, kölcsönök igénybevétele"]
["3.5.","Egyéb felhalmozási célú támogatások bevételei",null,14252082,14252082]
["3.6.","3.5.-ből EU-s támogatás"]
["4. ","Közhatalmi bevételek (4.1.+4.2.+4.3.+4.4.)",{"$f":"+C27+C31+C32+C33","v":32430000},{"$f":"+D27+D31+D32+D33","v":45370312},{"$f":"+E27+E31+E32+E33","v":34342442}]
["4.1.","Helyi adók  (4.1.1.+...+4.1.3.)",{"$f":"+C28+C29+C30","v":27500000},{"$f":"+D28+D29+D30","v":34427029},{"$f":"+E28+E29+E30","v":29800753}]
["4.1.1.","- Vagyoni típusú adók",6000000,7948566,6707174]
["4.1.2.","- Termékek és szolgáltatások adói"]
["4.1.3.","- Értékesítési és forgalmi adók (iparűzési adó)",21500000,26478463,23093579]
["4.2.","Gépjárműadó",4000000,9000000,3841170]
["4.3.","Egyéb áruhasználati és szolgáltatási adók",570000,820000,506150]
["4.4.","Egyéb közhatalmi bevételek",360000,1123283,194369]
["5.","Működési bevételek (5.1.+…+ 5.11.)",{"$f":"SUM(C35:C45)","v":19908496},{"$f":"SUM(D35:D45)","v":25325467},{"$f":"SUM(E35:E45)","v":14120157}]
["5.1.","Készletértékesítés ellenértéke"]
["5.2.","Szolgáltatások ellenértéke",6200000,6200000,2337875]
["5.3.","Közvetített szolgáltatások értéke",700000,1779383,829596]
["5.4.","Tulajdonosi bevételek",2100000,2100000,1946176]
["5.5.","Ellátási díjak",3300000,7130789,6348810]
["5.6.","Kiszámlázott általános forgalmi adó ",2754000,3233031,2623900]
["5.7.","Általános forgalmi adó visszatérítése",4854496,4854496]
["5.8.","Kamatbevételek",null,27768,33800]
["5.9.","Egyéb pénzügyi műveletek bevételei"]
["5.10.","Biztosító által fizetett kártérítés"]
["5.11.","Egyéb működési bevételek"]
["6.","Felhalmozási bevételek (6.1.+…+6.5.)",{"$f":"SUM(C47:C51)","v":0},{"$f":"SUM(D47:D51)","v":0},{"$f":"SUM(E47:E51)","v":0}]
["6.1.","Immateriális javak értékesítése"]
["6.2.","Ingatlanok értékesítése"]
["6.3.","Egyéb tárgyi eszközök értékesítése"]
["6.4.","Részesedések értékesítése"]
["6.5.","Részesedések megszűnéséhez kapcsolódó bevételek"]
["7. ","Működési célú átvett pénzeszközök (7.1. + … + 7.3.)",{"$f":"SUM(C53:C55)","v":0},{"$f":"SUM(D53:D55)","v":64310},{"$f":"SUM(E53:E55)","v":64310}]
["7.1.","Működési célú garancia- és kezességvállalásból megtérülések ÁH-n kívülről"]
["7.2.","Működési célú visszatérítendő támogatások, kölcsönök visszatér. ÁH-n kívülről"]
["7.3.","Egyéb működési célú átvett pénzeszköz",null,64310,64310]
["7.4.","7.3.-ból EU-s támogatás (közvetlen)"]
["8.","Felhalmozási célú átvett pénzeszközök (8.1.+8.2.+8.3.)",{"$f":"SUM(C58:C60)","v":1000000},{"$f":"SUM(D58:D60)","v":1445613},{"$f":"SUM(E58:E60)","v":1445613}]
["8.1.","Felhalm. célú garancia- és kezességvállalásból megtérülések ÁH-n kívülről"]
["8.2.","Felhalm. célú visszatérítendő támogatások, kölcsönök visszatér. ÁH-n kívülről",null,445613,445613]
["8.3.","Egyéb felhalmozási célú átvett pénzeszköz",1000000,1000000,1000000]
["8.4.","8.3.-ból EU-s támogatás (közvetlen)"]
["   9.","KÖLTSÉGVETÉSI BEVÉTELEK ÖSSZESEN: (1+…+8)",{"$f":"+C5+C12+C19+C26+C34+C46+C52+C57","v":93449910},{"$f":"+D5+D12+D19+D26+D34+D46+D52+D57","v":135799586},{"$f":"+E5+E12+E19+E26+E34+E46+E52+E57","v":120152989}]
["   10.","Hitel-, kölcsönfelvétel államháztartáson kívülről  (10.1.+10.3.)",{"$f":"SUM(C64:C66)","v":0},{"$f":"SUM(D64:D66)","v":0},{"$f":"SUM(E64:E66)","v":0}]
["10.1.","Hosszú lejáratú  hitelek, kölcsönök felvétele"]
["10.2.","Likviditási célú  hitelek, kölcsönök felvétele pénzügyi vállalkozástól"]
["10.3.","   Rövid lejáratú  hitelek, kölcsönök felvétele"]
["   11.","Belföldi értékpapírok bevételei (11.1. +…+ 11.4.)",{"$f":"SUM(C68:C71)","v":0},{"$f":"SUM(D68:D71)","v":50000},{"$f":"SUM(E68:E71)","v":50000}]
["11.1.","Forgatási célú belföldi értékpapírok beváltása,  értékesítése"]
["11.2.","Forgatási célú belföldi értékpapírok kibocsátása"]
["11.3.","Befektetési célú belföldi értékpapírok beváltása,  értékesítése",null,50000,50000]
["11.4.","Befektetési célú belföldi értékpapírok kibocsátása"]
["    12.","Maradvány igénybevétele (12.1. + 12.2.)",{"$f":"SUM(C73:C74)","v":11455631},{"$f":"SUM(D73:D74)","v":14399745},{"$f":"SUM(E73:E74)","v":14399745}]
["12.1.","Előző év költségvetési maradványának igénybevétele",11455631,14399745,14399745]
["12.2.","Előző év vállalkozási maradványának igénybevétele"]
["    13.","Belföldi finanszírozás bevételei (13.1. + … + 13.3.)",{"$f":"SUM(C76:C78)","v":0},{"$f":"SUM(D76:D78)","v":0},{"$f":"SUM(E76:E78)","v":1421796}]
["13.1.","Államháztartáson belüli megelőlegezések",null,null,1421796]
["13.2.","Államháztartáson belüli megelőlegezések törlesztése"]
["13.3.","Betétek megszüntetése"]
["    14.","Külföldi finanszírozás bevételei (14.1.+…14.4.)",{"$f":"SUM(C80:C83)","v":0},{"$f":"SUM(D80:D83)","v":0}]
["    14.1.","Forgatási célú külföldi értékpapírok beváltása,  értékesítése"]
["    14.2.","Befektetési célú külföldi értékpapírok beváltása,  értékesítése"]
["    14.3.","Külföldi értékpapírok kibocsátása"]
["    14.4.","Külföldi hitelek, kölcsönök felvétele"]
["    15.","Váltóbevételek"]
["    16.","Adóssághoz nem kapcsolódó származékos ügyletek bevételei"]
["    17.","FINANSZÍROZÁSI BEVÉTELEK ÖSSZESEN: (10. + … +16.)",{"$f":"+C63+C67+C72+C75+C79+C85+C84","v":11455631},{"$f":"+D63+D67+D72+D75+D79+D85+D84","v":14449745},{"$f":"+E63+E67+E72+E75+E79+E85+E84","v":15871541}]
["    18.","KÖLTSÉGVETÉSI ÉS FINANSZÍROZÁSI BEVÉTELEK ÖSSZESEN: (9+17)",{"$f":"+C62+C86","v":104905541},{"$f":"+D62+D86","v":150249331},{"$f":"+E62+E86","v":136024530}]
[]
["K I A D Á S O K"]
["2. sz. táblázat",null,null,null,"Ezer forintban"]
["Sor-\nszám","Kiadási jogcímek",{"$f":"+C3","v":"2016. évi eredeti előirányzat"},{"$f":"+D3","v":"2016.évimódosítottelőirányzat"},"Teljesített"]
["A","B","C","C"]
["1.","   Működési költségvetés kiadásai (1.1+…+1.5.+1.18.)",{"$f":"C94+C95+C96+C97+C98","v":90508133},{"$f":"D94+D95+D96+D97+D98","v":120944364},{"$f":"E94+E95+E96+E97+E98+E111","v":104680916}]
["1.1.","Személyi  juttatások",22318954,29629833,29610129]
["1.2.","Munkaadókat terhelő járulékok és szociális hozzájárulási adó",4791948,7578279,7531579]
["1.3.","Dologi  kiadások",42696280,54989901,44374234]
["1.4.","Ellátottak pénzbeli juttatásai",8000000,4953100,4952200]
["1.5","Egyéb működési célú kiadások",12700951,23793251,18212774]
["1.6."," - az 1.5-ből: - Előző évi elszámolásból származó befizetések"]
["1.7.","   - Törvényi előíráson alapuló befizetések"]
["1.8.","   - Elvonások és befizetések",null,3280000,2126000]
["1.9.","   - Garancia- és kezességvállalásból kifizetés ÁH-n belülre"]
["1.10.","   -Visszatérítendő támogatások, kölcsönök nyújtása ÁH-n belülre"]
["1.11.","   - Visszatérítendő támogatások, kölcsönök törlesztése ÁH-n belülre"]
["1.12.","   - Egyéb működési célú támogatások ÁH-n belülre",11197000,12632667,12632188]
["1.13.","   - Garancia és kezességvállalásból kifizetés ÁH-n kívülre"]
["1.14.","   - Visszatérítendő támogatások, kölcsönök nyújtása ÁH-n kívülre"]
["1.15.","   - Árkiegészítések, ártámogatások"]
["1.16.","   - Kamattámogatások"]
["1.17.","   - Egyéb működési célú támogatások államháztartáson kívülre",1500000,7868659,2301584]
["1.18.","Tartalékok",3951,11925]
["1.19."," - az 1.18-ból: - Általános tartalék",3951,11925]
["1.20.","   - Céltartalék"]
["2.","   Felhalmozási költségvetés kiadásai (2.1.+2.3.+2.5.)",{"$f":"+C115+C117+C119","v":14397408},{"$f":"+D115+D117+D119","v":28101345},{"$f":"+E115+E117+E119","v":17068510}]
["2.1.","Beruházások",4627664,4560600,1920184]
["2.2.","2.1.-ből EU-s forrásból megvalósuló beruházás"]
["2.3.","Felújítások",9769744,23540745,15148326]
["2.4.","2.3.-ból EU-s forrásból megvalósuló felújítás"]
["2.5.","Egyéb felhalmozási kiadások"]
["2.6.","2.5.-ből        - Garancia- és kezességvállalásból kifizetés ÁH-n belülre"]
["2.7.","   - Visszatérítendő támogatások, kölcsönök nyújtása ÁH-n belülre"]
["2.8.","   - Visszatérítendő támogatások, kölcsönök törlesztése ÁH-n belülre"]
["2.9.","   - Egyéb felhalmozási célú támogatások ÁH-n belülre"]
["2.10.","   - Garancia- és kezességvállalásból kifizetés ÁH-n kívülre"]
["2.11.","   - Visszatérítendő támogatások, kölcsönök nyújtása ÁH-n kívülre"]
["2.12.","   - Lakástámogatás"]
["2.13.","   - Egyéb felhalmozási célú támogatások államháztartáson kívülre"]
["3.","KÖLTSÉGVETÉSI KIADÁSOK ÖSSZESEN (1+2)",{"$f":"+C93+C114","v":104905541},{"$f":"+D93+D114","v":149045709},{"$f":"+E93+E114","v":121749426}]
["4.","Hitel-, kölcsöntörlesztés államháztartáson kívülre (4.1. + … + 4.3.)",{"$f":"+C130+C131+C132","v":0},{"$f":"+D130+D131+D132","v":0},{"$f":"+E130+E131+E132","v":0}]
["4.1.","Hosszú lejáratú hitelek, kölcsönök törlesztése pénzügyi vállalkozásnak"]
["4.2.","Likviditási célú hitelek, kölcsönök törlesztése pénzügyi vállalkozásnak"]
["4.3.","Rövid lejáratú hitelek, kölcsönök törlesztése pénzügyi vállalkozásnak"]
["5.","Belföldi értékpapírok kiadásai (5.1. + … + 5.6.)",{"$f":"SUM(C134:C139)","v":0},{"$f":"SUM(D134:D139)","v":0}]
["5.1.","Forgatási célú belföldi értékpapírok vásárlása"]
["5.2.","Befektetési célú belföldi értékpapírok vásárlása"]
["5.3.","Kincstárjegyek beváltása"]
["5.4.","Éven belüli lejáratú belföldi értékpapírok beváltása"]
["5.5.","Belföldi kötvények beváltása"]
["5.6.","Éven túli lejáratú belföldi értékpapírok beváltása"]
["6.","Belföldi finanszírozás kiadásai (6.1. + … + 6.4.)",{"$f":"+C141+C142+C143+C144","v":0},{"$f":"+D141+D142+D143+D144","v":1203622},{"$f":"+E141+E142+E143+E144","v":1203622}]
["6.1.","Államháztartáson belüli megelőlegezések folyósítása"]
["6.2.","Államháztartáson belüli megelőlegezések visszafizetése",null,1203622,1203622]
["6.3.","Pénzeszközök lekötött betétként elhelyezése"]
["6.4.","Pénzügyi lízing kiadásai"]
["7.","Külföldi finanszírozás kiadásai (7.1. + … + 7.5.)",{"$f":"SUM(C146:C150)","v":0},{"$f":"SUM(D146:D150)","v":0}]
["7.1.","Forgatási célú külföldi értékpapírok vásárlása"]
["7.2.","Befektetési célú külföldi értékpapírok vásárlása"]
["7.3.","Külföldi értékpapírok beváltása"]
["7.4.","Hitelek, kölcsönök törlesztése külföldi kormányoknak nemz. Szervezeteknek"]
["7.5.","Hitelek, kölcsönök törlesztése külföldi pénzintézeteknek"]
["8.","Adóssághoz nem kapcsolódó származékos ügyletek"]
["9.","Váltókiadások"]
["10.","FINANSZÍROZÁSI KIADÁSOK ÖSSZESEN: (4.+…+9.)",{"$f":"+C129+C133+C140+C145+C151+C152","v":0},{"$f":"+D129+D133+D140+D145+D151+D152","v":1203622},{"$f":"+E129+E133+E140+E145+E151+E152","v":1203622}]
["11.","KIADÁSOK ÖSSZESEN: (3.+10.)",{"$f":"+C128+C153","v":104905541},{"$f":"+D128+D153","v":150249331},{"$f":"+E128+E153","v":122953048}]
[]
["KÖLTSÉGVETÉSI, FINANSZÍROZÁSI BEVÉTELEK ÉS KIADÁSOK EGYENLEGE"]
["3. sz. táblázat"]
[1,"Költségvetési hiány, többlet ( költségvetési bevételek 9. sor - költségvetési kiadások 3. sor) (+/-)",{"$f":"+C62-C128","v":-11455631},{"$f":"+D62-D128","v":-13246123},{"$f":"+E62-E128","v":-1596437}]
["2.","Finanszírozási bevételek, kiadások egyenlege (finanszírozási bevételek 17. sor - finanszírozási kiadások 10. sor)\n (+/-)",{"$f":"+C86-C153","v":11455631},{"$f":"+D86-D153","v":13246123},{"$f":"+E86-E153","v":14667919}]

{"sheet":"1.3.sz.mell.önként.","index":3,"n_rows":159,"n_cols":5,"rows_kept":159,"cut":false,"hidden":false,"merged":[[155,0,155,2],[156,0,156,1],[0,0,0,2],[1,0,1,1],[88,0,88,2],[89,0,89,1]]}
["B E V É T E L E K"]
["1. sz. táblázat",null,null,null,"Ezer forintban"]
["Sor-\nszám","Bevételi jogcím",{"$f":"+CONCATENATE(LEFT(ÖSSZEFÜGGÉSEK!A5,4),\". évi eredeti előirányzat\")","v":"2016. évi eredeti előirányzat"},{"$f":"+CONCATENATE(LEFT(ÖSSZEFÜGGÉSEK!B5,4),\"2015 évi módosított előirányzat\")","v":"2015 évi módosított előirányzat"},"Teljesített"]
["A","B","C","D","E "]
["1.","Önkormányzat működési támogatásai (1.1.+…+.1.6.)",{"$f":"+C6+C7+C8+C9+C10+C11","v":0},{"$f":"+D6+D7+D8+D9+D10+D11","v":0}]
["1.1.","Helyi önkormányzatok működésének általános támogatása"]
["1.2.","Önkormányzatok egyes köznevelési feladatainak támogatása"]
["1.3.","Önkormányzatok szociális és gyermekjóléti feladatainak támogatása"]
["1.4.","Önkormányzatok kulturális feladatainak támogatása"]
["1.5.","Működési célú kvi támogatások és kiegészítő támogatások "]
["1.6.","Elszámolásból származó bevételek"]
["2.","Működési célú támogatások államháztartáson belülről (2.1.+…+.2.5.)",{"$f":"+C13+C14+C15+C16+C17","v":0},{"$f":"+D13+D14+D15+D16+D17","v":0}]
["2.1.","Elvonások és befizetések bevételei"]
["2.2.","Működési célú garancia- és kezességvállalásból megtérülések "]
["2.3.","Működési célú visszatérítendő támogatások, kölcsönök visszatérülése "]
["2.4.","Működési célú visszatérítendő támogatások, kölcsönök igénybevétele"]
["2.5.","Egyéb működési célú támogatások bevételei "]
["2.6.","2.5.-ből EU-s támogatás"]
["3.","Felhalmozási célú támogatások államháztartáson belülről (3.1.+…+3.5.)",{"$f":"+C20+C21+C22+C23+C24","v":0},{"$f":"+D20+D21+D22+D23+D24","v":0}]
["3.1.","Felhalmozási célú önkormányzati támogatások"]
["3.2.","Felhalmozási célú garancia- és kezességvállalásból megtérülések"]
["3.3.","Felhalmozási célú visszatérítendő támogatások, kölcsönök visszatérülése"]
["3.4.","Felhalmozási célú visszatérítendő támogatások, kölcsönök igénybevétele"]
["3.5.","Egyéb felhalmozási célú támogatások bevételei"]
["3.6.","3.5.-ből EU-s támogatás"]
["4. ","Közhatalmi bevételek (4.1.+4.2.+4.3.+4.4.)",{"$f":"+C27+C31+C32+C33","v":0},{"$f":"+D27+D31+D32+D33","v":0},{"$f":"+E27+E31+E32+E33","v":0}]
["4.1.","Helyi adók  (4.1.1.+...+4.1.3.)",{"$f":"+C28+C29+C30","v":0},{"$f":"+D28+D29+D30","v":0},{"$f":"+E28+E29+E30","v":0}]
["4.1.1.","- Vagyoni típusú adók"]
["4.1.2.","- Termékek és szolgáltatások adói"]
["4.1.3.","- Értékesítési és forgalmi adók (iparűzési adó)"]
["4.2.","Gépjárműadó"]
["4.3.","Egyéb áruhasználati és szolgáltatási adók"]
["4.4.","Egyéb közhatalmi bevételek"]
["5.","Működési bevételek (5.1.+…+ 5.11.)",{"$f":"SUM(C35:C45)","v":0},{"$f":"SUM(D35:D45)","v":0}]
["5.1.","Készletértékesítés ellenértéke"]
["5.2.","Szolgáltatások ellenértéke"]
["5.3.","Közvetített szolgáltatások értéke"]
["5.4.","Tulajdonosi bevételek"]
["5.5.","Ellátási díjak"]
["5.6.","Kiszámlázott általános forgalmi adó "]
["5.7.","Általános forgalmi adó visszatérítése"]
["5.8.","Kamatbevételek"]
["5.9.","Egyéb pénzügyi műveletek bevételei"]
["5.10.","Biztosító által fizetett kártérítés"]
["5.11.","Egyéb működési bevételek"]
["6.","Felhalmozási bevételek (6.1.+…+6.5.)",{"$f":"SUM(C47:C51)","v":0},{"$f":"SUM(D47:D51)","v":0}]
["6.1.","Immateriális javak értékesítése"]
["6.2.","Ingatlanok értékesítése"]
["6.3.","Egyéb tárgyi eszközök értékesítése"]
["6.4.","Részesedések értékesítése"]
["6.5.","Részesedések megszűnéséhez kapcsolódó bevételek"]
["7. ","Működési célú átvett pénzeszközök (7.1. + … + 7.3.)",{"$f":"SUM(C53:C55)","v":0},{"$f":"SUM(D53:D55)","v":0}]
["7.1.","Működési célú garancia- és kezességvállalásból megtérülések ÁH-n kívülről"]
["7.2.","Működési célú visszatérítendő támogatások, kölcsönök visszatér. ÁH-n kívülről"]
["7.3.","Egyéb működési célú átvett pénzeszköz"]
["7.4.","7.3.-ból EU-s támogatás (közvetlen)"]
["8.","Felhalmozási célú átvett pénzeszközök (8.1.+8.2.+8.3.)",{"$f":"SUM(C58:C60)","v":0},{"$f":"SUM(D58:D60)","v":0}]
["8.1.","Felhalm. célú garancia- és kezességvállalásból megtérülések ÁH-n kívülről"]
["8.2.","Felhalm. célú visszatérítendő támogatások, kölcsönök visszatér. ÁH-n kívülről"]
["8.3.","Egyéb felhalmozási célú átvett pénzeszköz"]
["8.4.","8.3.-ból EU-s támogatás (közvetlen)"]
["   9.","KÖLTSÉGVETÉSI BEVÉTELEK ÖSSZESEN: (1+…+8)",{"$f":"+C5+C12+C19+C26+C34+C46+C52+C57","v":0},{"$f":"+D5+D12+D19+D26+D34+D46+D52+D57","v":0},{"$f":"+E5+E12+E19+E26+E34+E46+E52+E57","v":0}]
["   10.","Hitel-, kölcsönfelvétel államháztartáson kívülről  (10.1.+10.3.)",{"$f":"SUM(C64:C66)","v":0},{"$f":"SUM(D64:D66)","v":0}]
["10.1.","Hosszú lejáratú  hitelek, kölcsönök felvétele"]
["10.2.","Likviditási célú  hitelek, kölcsönök felvétele pénzügyi vállalkozástól"]
["10.3.","   Rövid lejáratú  hitelek, kölcsönök felvétele"]
["   11.","Belföldi értékpapírok bevételei (11.1. +…+ 11.4.)",{"$f":"SUM(C68:C71)","v":0},{"$f":"SUM(D68:D71)","v":0}]
["11.1.","Forgatási célú belföldi értékpapírok beváltása,  értékesítése"]
["11.2.","Forgatási célú belföldi értékpapírok kibocsátása"]
["11.3.","Befektetési célú belföldi értékpapírok beváltása,  értékesítése"]
["11.4.","Befektetési célú belföldi értékpapírok kibocsátása"]
["    12.","Maradvány igénybevétele (12.1. + 12.2.)",{"$f":"SUM(C73:C74)","v":0},{"$f":"SUM(D73:D74)","v":0}]
["12.1.","Előző év költségvetési maradványának igénybevétele"]
["12.2.","Előző év vállalkozási maradványának igénybevétele"]
["    13.","Belföldi finanszírozás bevételei (13.1. + … + 13.3.)",{"$f":"SUM(C76:C78)","v":0},{"$f":"SUM(D76:D78)","v":0}]
["13.1.","Államháztartáson belüli megelőlegezések"]
["13.2.","Államháztartáson belüli megelőlegezések törlesztése"]
["13.3.","Betétek megszüntetése"]
["    14.","Külföldi finanszírozás bevételei (14.1.+…14.4.)",{"$f":"SUM(C80:C83)","v":0},{"$f":"SUM(D80:D83)","v":0}]
["    14.1.","Forgatási célú külföldi értékpapírok beváltása,  értékesítése"]
["    14.2.","Befektetési célú külföldi értékpapírok beváltása,  értékesítése"]
["    14.3.","Külföldi értékpapírok kibocsátása"]
["    14.4.","Külföldi hitelek, kölcsönök felvétele"]
["    15.","Váltóbevételek"]
["    16.","Adóssághoz nem kapcsolódó származékos ügyletek bevételei"]
["    17.","FINANSZÍROZÁSI BEVÉTELEK ÖSSZESEN: (10. + … +16.)",{"$f":"+C63+C67+C72+C75+C79+C85+C84","v":0},{"$f":"+D63+D67+D72+D75+D79+D85+D84","v":0}]
["    18.","KÖLTSÉGVETÉSI ÉS FINANSZÍROZÁSI BEVÉTELEK ÖSSZESEN: (9+17)",{"$f":"+C62+C86","v":0},{"$f":"+D62+D86","v":0},{"$f":"+E62+E86","v":0}]
[]
["K I A D Á S O K"]
["2. sz. táblázat",null,null,null,"Ezer forintban"]
["Sor-\nszám","Kiadási jogcímek",{"$f":"+C3","v":"2016. évi eredeti előirányzat"},{"$f":"+D3","v":"2015 évi módosított előirányzat"},"Teljesített"]
["A","B","C","D"]
["1.","   Működési költségvetés kiadásai (1.1+…+1.5.+1.18.)",{"$f":"C94+C95+C96+C97+C98+C111","v":2450},{"$f":"D94+D95+D96+D97+D98+D111","v":2450},{"$f":"E94+E95+E96+E97+E98+E111","v":1500}]
["1.1.","Személyi  juttatások"]
["1.2.","Munkaadókat terhelő járulékok és szociális hozzájárulási adó"]
["1.3.","Dologi  kiadások"]
["1.4.","Ellátottak pénzbeli juttatásai"]
["1.5","Egyéb működési célú kiadások",2450,2450,1500]
["1.6."," - az 1.5-ből: - Előző évi elszámolásból származó befizetések"]
["1.7.","   - Törvényi előíráson alapuló befizetések"]
["1.8.","   - Elvonások és befizetések"]
["1.9.","   - Garancia- és kezességvállalásból kifizetés ÁH-n belülre"]
["1.10.","   -Visszatérítendő támogatások, kölcsönök nyújtása ÁH-n belülre"]
["1.11.","   - Visszatérítendő támogatások, kölcsönök törlesztése ÁH-n belülre"]
["1.12.","   - Egyéb működési célú támogatások ÁH-n belülre"]
["1.13.","   - Garancia és kezességvállalásból kifizetés ÁH-n kívülre"]
["1.14.","   - Visszatérítendő támogatások, kölcsönök nyújtása ÁH-n kívülre"]
["1.15.","   - Árkiegészítések, ártámogatások"]
["1.16.","   - Kamattámogatások"]
["1.17.","   - Egyéb működési célú támogatások államháztartáson kívülre",2450,2450,1500]
["1.18.","Tartalékok"]
["1.19."," - az 1.18-ból: - Általános tartalék"]
["1.20.","   - Céltartalék"]
["2.","   Felhalmozási költségvetés kiadásai (2.1.+2.3.+2.5.)",{"$f":"+C115+C117+C119","v":0},{"$f":"+D115+D117+D119","v":0}]
["2.1.","Beruházások"]
["2.2.","2.1.-ből EU-s forrásból megvalósuló beruházás"]
["2.3.","Felújítások"]
["2.4.","2.3.-ból EU-s forrásból megvalósuló felújítás"]
["2.5.","Egyéb felhalmozási kiadások"]
["2.6.","2.5.-ből        - Garancia- és kezességvállalásból kifizetés ÁH-n belülre"]
["2.7.","   - Visszatérítendő támogatások, kölcsönök nyújtása ÁH-n belülre"]
["2.8.","   - Visszatérítendő támogatások, kölcsönök törlesztése ÁH-n belülre"]
["2.9.","   - Egyéb felhalmozási célú támogatások ÁH-n belülre"]
["2.10.","   - Garancia- és kezességvállalásból kifizetés ÁH-n kívülre"]
["2.11.","   - Visszatérítendő támogatások, kölcsönök nyújtása ÁH-n kívülre"]
["2.12.","   - Lakástámogatás"]
["2.13.","   - Egyéb felhalmozási célú támogatások államháztartáson kívülre"]
["3.","KÖLTSÉGVETÉSI KIADÁSOK ÖSSZESEN (1+2)",{"$f":"+C93+C114","v":2450},{"$f":"+D93+D114","v":2450},{"$f":"+E93+E114","v":1500}]
["4.","Hitel-, kölcsöntörlesztés államháztartáson kívülre (4.1. + … + 4.3.)",{"$f":"+C130+C131+C132","v":0},{"$f":"+D130+D131+D132","v":0}]
["4.1.","Hosszú lejáratú hitelek, kölcsönök törlesztése pénzügyi vállalkozásnak"]
["4.2.","Likviditási célú hitelek, kölcsönök törlesztése pénzügyi vállalkozásnak"]
["4.3.","Rövid lejáratú hitelek, kölcsönök törlesztése pénzügyi vállalkozásnak"]
["5.","Belföldi értékpapírok kiadásai (5.1. + … + 5.6.)",{"$f":"SUM(C134:C139)","v":0},{"$f":"SUM(D134:D139)","v":0}]
["5.1.","Forgatási célú belföldi értékpapírok vásárlása"]
["5.2.","Befektetési célú belföldi értékpapírok vásárlása"]
["5.3.","Kincstárjegyek beváltása"]
["5.4.","Éven belüli lejáratú belföldi értékpapírok beváltása"]
["5.5.","Belföldi kötvények beváltása"]
["5.6.","Éven túli lejáratú belföldi értékpapírok beváltása"]
["6.","Belföldi finanszírozás kiadásai (6.1. + … + 6.4.)",{"$f":"+C141+C142+C143+C144","v":0},{"$f":"+D141+D142+D143+D144","v":0}]
["6.1.","Államháztartáson belüli megelőlegezések folyósítása"]
["6.2.","Államháztartáson belüli megelőlegezések visszafizetése"]
["6.3.","Pénzeszközök lekötött betétként elhelyezése"]
["6.4.","Pénzügyi lízing kiadásai"]
["7.","Külföldi finanszírozás kiadásai (7.1. + … + 7.5.)",{"$f":"SUM(C146:C150)","v":0},{"$f":"SUM(D146:D150)","v":0}]
["7.1.","Forgatási célú külföldi értékpapírok vásárlása"]
["7.2.","Befektetési célú külföldi értékpapírok vásárlása"]
["7.3.","Külföldi értékpapírok beváltása"]
["7.4.","Hitelek, kölcsönök törlesztése külföldi kormányoknak nemz. Szervezeteknek"]
["7.5.","Hitelek, kölcsönök törlesztése külföldi pénzintézeteknek"]
["8.","Adóssághoz nem kapcsolódó származékos ügyletek"]
["9.","Váltókiadások"]
["10.","FINANSZÍROZÁSI KIADÁSOK ÖSSZESEN: (4.+…+9.)",{"$f":"+C129+C133+C140+C145+C151+C152","v":0},{"$f":"+D129+D133+D140+D145+D151+D152","v":0}]
["11.","KIADÁSOK ÖSSZESEN: (3.+10.)",{"$f":"+C128+C153","v":2450},{"$f":"+D128+D153","v":2450},{"$f":"+E128+E153","v":1500}]
[]
["KÖLTSÉGVETÉSI, FINANSZÍROZÁSI BEVÉTELEK ÉS KIADÁSOK EGYENLEGE"]
["3. sz. táblázat",null,null,null,"Ezer forintban"]
[1,"Költségvetési hiány, többlet ( költségvetési bevételek 9. sor - költségvetési kiadások 3. sor) (+/-)",{"$f":"+C62-C128","v":-2450},{"$f":"+D62-D128","v":-2450}]
["2.","Finanszírozási bevételek, kiadások egyenlege (finanszírozási bevételek 17. sor - finanszírozási kiadások 10. sor)\n (+/-)",{"$f":"+C86-C153","v":0},{"$f":"+D86-D153","v":0}]

{"sheet":"2.1.sz.mell  ","index":4,"n_rows":32,"n_cols":10,"rows_kept":32,"cut":false,"hidden":false,"merged":[[2,0,3,0],[0,9,31,9],[32,1,32,5]]}
[null,"I. Működési célú bevételek és kiadások mérlege\n(Önkormányzati szinten)",null,null,null,null,null,null,null,"2.1. melléklet az... /2017.(..) önkormányzati rendelethez"]
[]
["Sor-\nszám","Bevételek",null,null,null,"Kiadások"]
[null,"Megnevezés",{"$f":"+'1.1.sz.mell.össz.'!C3","v":"2016.évi eredeti előirányzat"},"2016.évi módosított előirányzat","Teljesített","Megnevezés",{"$f":"+C4","v":"2016.évi eredeti előirányzat"},"2016.évi módosított előirányzat","Teljesített"]
["A","B","C","D","E","F","G","H","I"]
["1.","Önkormányzatok működési támogatásai",40111414,49341802,36649712,"Személyi juttatások",22318879,29629833,29610129]
["2.","Működési célú támogatások államháztartáson belülről",null,14252082,19278673,"Munkaadókat terhelő járulékok és szociális hozzájárulási adó",4791948,7578279,7531579]
["3.","2.-ból EU-s támogatás",null,null,null,"Dologi kiadások ",42696280,54989901,44374234]
["4.","Közhatalmi bevételek",32430000,45370312,34342442,"Ellátottak pénzbeli juttatásai",8000000,4953100,4952200]
["5.","Működési bevételek",19908496,25325467,14120157,"Egyéb működési célú kiadások",12700951,23793251,18212774]
["6.","Működési célú átvett pénzeszközök",null,64310,64310,"Tartalékok",null,11925]
["7.","6.-ból EU-s támogatás (közvetlen)"]
["8."]
["9."]
["10."]
["11."]
["12."]
["13.","Költségvetési bevételek összesen (1.+2.+4.+5.+6.+8.+…+12.)",{"$f":"SUM(C6:C17)","v":92449910},{"$f":"SUM(D6:D17)","v":134353973},{"$f":"SUM(E6:E17)","v":104455294},"Költségvetési kiadások összesen (1.+...+12.)",{"$f":"SUM(G6:G17)","v":90508058},{"$f":"SUM(H6:H17)","v":120956289},{"$f":"SUM(I6:I17)","v":104680916}]
["14.","Hiány belső finanszírozásának bevételei (15.+…+18. )",{"$f":"+C20+C21+C22+C23","v":11455631},{"$f":"+D20+D21+D22+D23","v":14399745},{"$f":"+E20+E21+E22+E23","v":14399745},"Értékpapír vásárlása, visszavásárlása"]
["15.","   Költségvetési maradvány igénybevétele ",11455631,14399745,14399745,"Likviditási célú hitelek törlesztése"]
["16.","   Vállalkozási maradvány igénybevétele ",null,null,null,"Rövid lejáratú hitelek törlesztése"]
["17.","   Betét visszavonásából származó bevétel ",null,null,null,"Hosszú lejáratú hitelek törlesztése"]
["18.","   Egyéb belső finanszírozási bevételek",null,null,null,"Kölcsön törlesztése"]
["19.","Hiány külső finanszírozásának bevételei (20.+…+21.) ",{"$f":"+C25+C26","v":0},{"$f":"+D25+D26","v":0},{"$f":"+E25+E26","v":0},"Forgatási célú belföldi, külföldi értékpapírok vásárlása"]
["20.","   Likviditási célú hitelek, kölcsönök felvétele",null,null,null,"Pénzeszközök lekötött betétként elhelyezése"]
["21.","   Értékpapírok bevételei",null,null,null,"Adóssághoz nem kapcsolódó származékos ügyletek"]
["22.","Váltóbevételek",null,null,null,"Váltókiadások"]
["23.","Adóssághoz nem kapcsolódó származékos ügyletek bevételei",null,null,null,"Államháztartáson belüli megelőlegezések visszafizetése",null,1203622,1203600]
["24.","Működési célú finanszírozási bevételek összesen (14.+19.+22.+23.)",{"$f":"+C19+C24+C27+C28","v":11455631},{"$f":"+D19+D24+D27+D28","v":14399745},{"$f":"+E19+E24+E27+E28","v":14399745},"Működési célú finanszírozási kiadások összesen (14.+...+23.)",{"$f":"SUM(G19:G28)","v":0},{"$f":"SUM(H19:H28)","v":1203622},{"$f":"SUM(I19:I28)","v":1203600}]
["25.","BEVÉTEL ÖSSZESEN (13.+24.)",{"$f":"+C18+C29","v":103905541},{"$f":"+D18+D29","v":148753718},{"$f":"+E18+E29","v":118855039},"KIADÁSOK ÖSSZESEN (13.+24.)",{"$f":"+G18+G29","v":90508058},{"$f":"+H18+H29","v":122159911},{"$f":"+I18+I29","v":105884516}]
["26.","Költségvetési hiány:",{"$f":"IF(C18-G18<0,G18-C18,\"-\")","v":"-"},{"$f":"IF(D18-H18<0,H18-D18,\"-\")","v":"-"},null,"Költségvetési többlet:",{"$f":"IF(C18-G18>0,C18-G18,\"-\")","v":1941852},{"$f":"IF(D18-H18>0,D18-H18,\"-\")","v":13397684},12970532]
["27.","Tárgyévi  hiány:",{"$f":"IF(C18+C29-G30<0,G30-(C18+C29),\"-\")","v":"-"},{"$f":"IF(D18+D29-H30<0,H30-(D18+D29),\"-\")","v":"-"},null,"Tárgyévi  többlet:",{"$f":"IF(C18+C29-G30>0,C18+C29-G30,\"-\")","v":13397483},{"$f":"IF(D18+D29-H30>0,D18+D29-H30,\"-\")","v":26593807}]

{"sheet":"2.2.sz.mell  ","index":5,"n_rows":34,"n_cols":10,"rows_kept":34,"cut":false,"hidden":false,"merged":[[2,0,3,0],[0,9,32,9]]}
[null,"II. Felhalmozási célú bevételek és kiadások mérlege\n(Önkormányzati szinten)",null,null,null,null,null,null,null,"2.2. melléklet az .../2017. (…) önkormányzati rendelethez"]
[]
["Sor-\nszám","Bevételek",null,null,null,"Kiadások"]
[null,"Megnevezés",{"$f":"+'2.1.sz.mell  '!C4","v":"2016.évi eredeti előirányzat"},"2016.évi módosított előirányzat","Teljesített","Megnevezés",{"$f":"+'2.1.sz.mell  '!C4","v":"2016.évi eredeti előirányzat"},"2016.évi módosított előirányzat","Teljesített"]
["A","B","C","D","E","F","G","H","I"]
["1.","Felhalmozási célú támogatások államháztartáson belülről",null,14252082,14252082,"Beruházások",4627664,4560600,1920184]
["2.","1.-ből EU-s támogatás",null,null,null,"1.-ből EU-s forrásból megvalósuló beruházás"]
["3.","Felhalmozási bevételek",null,null,null,"Felújítások",9769744,23540745,15148326]
["4.","Felhalmozási célú átvett pénzeszközök átvétele",1000000,1445613,1445613,"3.-ból EU-s forrásból megvalósuló felújítás"]
["5.","4.-ből EU-s támogatás (közvetlen)",null,null,null,"Egyéb felhalmozási kiadások"]
["6.","Egyéb felhalmozási célú bevételek",null,null,1421796]
["7."]
["8."]
["9."]
["10."]
["11.",null,null,null,null,"Tartalékok"]
["12.","Költségvetési bevételek összesen: (1.+3.+4.+6.+…+11.)",{"$f":"+C6+C8+C9+C11+C12+C13+C14+C15+C16","v":1000000},{"$f":"+D6+D8+D9+D11+D12+D13+D14+D15+D16","v":15697695},{"$f":"+E6+E8+E9+E11+E12+E13+E14+E15+E16","v":17119491},"Költségvetési kiadások összesen: (1.+3.+5.+...+11.)",{"$f":"+G6+G8+G10+G11+G12+G13+G14+G15+G16","v":14397408},{"$f":"+H6+H8+H10+H11+H12+H13+H14+H15+H16","v":28101345},{"$f":"+I6+I8+I10+I11+I12+I13+I14+I15+I16","v":17068510}]
["13.","Hiány belső finanszírozás bevételei ( 14+…+18)",{"$f":"+C19+C20+C21+C22+C23","v":0},50000,50000,"Értékpapír vásárlása, visszavásárlása"]
["14.","Költségvetési maradvány igénybevétele",null,null,null,"Hitelek törlesztése"]
["15.","Vállalkozási maradvány igénybevétele ",null,null,null,"Rövid lejáratú hitelek törlesztése",null,null,11383]
["16.","Betét visszavonásából származó bevétel ",null,null,null,"Hosszú lejáratú hitelek törlesztése"]
["17.","Értékpapír értékesítése",null,null,null,"Kölcsön törlesztése"]
["18.","Egyéb belső finanszírozási bevételek",null,50000,50000,"Befektetési célú belföldi, külföldi értékpapírok vásárlása"]
["19.","Hiány külső finanszírozásának bevételei (20+…+24 )",{"$f":"+C25+C26+C27+C28+C29","v":0},{"$f":"+D25+D26+D27+D28+D29","v":0},{"$f":"+E25+E26+E27+E28+E29","v":0},"Betét elhelyezése"]
["20.","Hosszú lejáratú hitelek, kölcsönök felvétele",null,null,null,"Pénzügyi lízing kiadásai"]
["21.","Likviditási célú hitelek, kölcsönök felvétele"]
["22.","Rövid lejáratú hitelek, kölcsönök felvétele"]
["23.","Értékpapírok kibocsátása"]
["24.","Egyéb külső finanszírozási bevételek"]
["25.","Felhalmozási célú finanszírozási bevételek összesen (13.+19.)",{"$f":"+C18+C24","v":0},{"$f":"+D18+D24","v":50000},{"$f":"+E18+E24","v":50000},"Felhalmozási célú finanszírozási kiadások összesen\n(13.+...+24.)",{"$f":"SUM(G18:G29)","v":0},{"$f":"SUM(H18:H29)","v":0},{"$f":"SUM(I18:I29)","v":11383}]
["26.","BEVÉTEL ÖSSZESEN (12+25)",{"$f":"+C17+C30","v":1000000},{"$f":"+D17+D30","v":15747695},{"$f":"E17+E30","v":17169491},"KIADÁSOK ÖSSZESEN (12+25)",{"$f":"+G17+G30","v":14397408},{"$f":"+H17+H30","v":28101345},{"$f":"+I17+I30","v":17079893}]
["27.","Költségvetési hiány:",{"$f":"IF(C17-G17<0,G17-C17,\"-\")","v":13397408},{"$f":"IF(D17-H17<0,H17-D17,\"-\")","v":12403650},{"$f":"IF(E17-I17<0,I17-E17,\"-\")","v":"-"},"Költségvetési többlet:",{"$f":"IF(C17-G17>0,C17-G17,\"-\")","v":"-"},{"$f":"IF(D17-H17>0,D17-H17,\"-\")","v":"-"},89598]
["28.","Tárgyévi  hiány:",{"$f":"IF(C17+C30-G26<0,G26-(C17+C30),\"-\")","v":"-"},{"$f":"IF(D17+D30-H26<0,H26-(D17+D30),\"-\")","v":"-"},null,"Tárgyévi  többlet:"]
[null,null,null,null,null,null,0]

{"sheet":"ELLENŐRZÉS-1.sz.2.a.sz.2.b.sz.","index":6,"n_rows":15,"n_cols":5,"rows_kept":15,"cut":false,"hidden":false,"merged":[]}
["Költségvetési rendelet űrlapjainak összefüggései:",null,null,null,"ELTÉRÉS"]
[]
[]
[{"$f":"+ÖSSZEFÜGGÉSEK!A5","v":"2016. évi előirányzat BEVÉTELEK"}]
[]
["1.1. sz. melléklet Bevételek táblázat C. oszlop 9 sora =",{"$f":"+'1.1.sz.mell.össz.'!C62","v":93449910},"2.1. számú melléklet C. oszlop 13. sor + 2.2. számú melléklet C. oszlop 12. sor ",{"$f":"+'2.1.sz.mell  '!C18+'2.2.sz.mell  '!C17","v":93449910},{"$f":"+B6-D6","v":0}]
["1.1. sz. melléklet Bevételek táblázat C. oszlop 17 sora =",{"$f":"+'1.1.sz.mell.össz.'!C86","v":11455631},"2.1. számú melléklet C. oszlop 24. sor + 2.2. számú melléklet C. oszlop 25. sor ",{"$f":"+'2.1.sz.mell  '!C29+'2.2.sz.mell  '!C30","v":11455631},0]
["1.1. sz. melléklet Bevételek táblázat C. oszlop 18 sora =",{"$f":"+'1.1.sz.mell.össz.'!C87","v":104905541},"2.1. számú melléklet C. oszlop 25. sor + 2.2. számú melléklet C. oszlop 26. sor ",{"$f":"+'2.1.sz.mell  '!C30+'2.2.sz.mell  '!C31","v":104905541},0]
[]
[]
[{"$f":"+ÖSSZEFÜGGÉSEK!A12","v":"2016. évi előirányzat KIADÁSOK"}]
[]
["1.1. sz. melléklet Kiadások táblázat C. oszlop 3 sora =",{"$f":"+'1.1.sz.mell.össz.'!C128","v":104905541},"2.1. számú melléklet E. oszlop 13. sor + 2.2. számú melléklet E. oszlop 12. sor ",{"$f":"+'2.1.sz.mell  '!G18+'2.2.sz.mell  '!G17","v":104905466},75]
["1.1. sz. melléklet Kiadások táblázat C. oszlop 10 sora =",{"$f":"+'1.1.sz.mell.össz.'!C153","v":0},"2.1. számú melléklet E. oszlop 24. sor + 2.2. számú melléklet E. oszlop 25. sor ",{"$f":"+'2.1.sz.mell  '!G29+'2.2.sz.mell  '!G30","v":0},0]
["1.1. sz. melléklet Kiadások táblázat C. oszlop 11 sora =",{"$f":"+'1.1.sz.mell.össz.'!C154","v":104905541},"2.1. számú melléklet E. oszlop 25. sor + 2.2. számú melléklet E. oszlop 26. sor ",{"$f":"+'2.1.sz.mell  '!G30+'2.2.sz.mell  '!G31","v":104905466},75]

{"sheet":"3.sz.mell.  ","index":7,"n_rows":11,"n_cols":6,"rows_kept":11,"cut":false,"hidden":false,"merged":[[0,0,0,5],[1,2,1,3],[2,5,3,5],[2,0,3,0],[2,1,3,1],[2,2,2,4],[1,4,1,5]]}
["Sióagárd Község Önkormányzata adósságot keletkeztető ügyletekből és kezességvállalásokból fennálló kötelezettségei"]
[null,null,null,null,"Ezer forintban !"]
["Sor-szám","MEGNEVEZÉS","Évek",null,null,"Összesen\n(F=C+D+E)"]
[null,null,{"$f":"+LEFT(ÖSSZEFÜGGÉSEK!A5,4)+1","v":2017},{"$f":"+C4+1","v":2018},{"$f":"+D4+1","v":2019}]
["A","B","C","D","E","F"]
["1.",null,null,null,null,{"$f":"SUM(C6:E6)","v":0}]
["2.",null,null,null,null,{"$f":"SUM(C7:E7)","v":0}]
["3.",null,null,null,null,{"$f":"SUM(C8:E8)","v":0}]
["4.",null,null,null,null,{"$f":"SUM(C9:E9)","v":0}]
["5.",null,null,null,null,{"$f":"SUM(C10:E10)","v":0}]
["6.","ÖSSZES KÖTELEZETTSÉG",{"$f":"SUM(C6:C10)","v":0},{"$f":"SUM(D6:D10)","v":0},{"$f":"SUM(E6:E10)","v":0},{"$f":"SUM(F6:F10)","v":0}]

{"sheet":"4.sz.mell.","index":8,"n_rows":12,"n_cols":5,"rows_kept":12,"cut":false,"hidden":false,"merged":[[0,0,0,2],[10,0,10,1],[11,0,11,2]]}
["Sióagárd Község Önkormányzata saját bevételeinek részletezése az adósságot keletkeztető ügyletből származó tárgyévi fizetési kötelezettség megállapításához"]
[]
["Sor-szám","Bevételi jogcímek",{"$f":"+'1.1.sz.mell.össz.'!C3","v":"2016.évi eredeti előirányzat"},{"$f":"+'1.1.sz.mell.össz.'!D3","v":"2016.évi módosított előirányzat"},"Teljesített"]
["A","B","C","C"]
["1.","Helyi adóból és a települési adóból származó bevétel",27500000,34427029,29800753]
["2.","Az önkormányzati vagyon és az önkormányzatot megillető vagyoni értékű jog értékesítéséből és hasznosításából származó bevétel",null,50000,50000]
["3.","Osztalék, koncessziós díj és hozambevétel"]
["4.","Tárgyi eszköz és az immateriális jószág, részvény, részesedés, vállalat értékesítéséből vagy privatizációból származó bevétel"]
["5.","Bírság-, pótlék- és díjbevétel",360000,1123283,194369]
["6.","Kezesség-, illetve garanciavállalással kapcsolatos megtérülés"]
["SAJÁT BEVÉTELEK ÖSSZESEN*",null,{"$f":"SUM(C5:C10)","v":27860000},{"$f":"SUM(D5:D10)","v":35600312},{"$f":"SUM(E5:E10)","v":30045122}]
["*Az adósságot keletkeztető ügyletekhez történő hozzájárulás részletes szabályairól szóló 353/2011. (XII.31.) Korm. Rendelet 2.§ (1) bekezdése alapján."]

{"sheet":"5.sz.mell.","index":9,"n_rows":8,"n_cols":3,"rows_kept":8,"cut":false,"hidden":false,"merged":[[0,0,0,2]]}
[{"$f":"+CONCATENATE(\"Sióagárd Község Önkormányzata \",CONCATENATE(LEFT(ÖSSZEFÜGGÉSEK!A5,4),\". évi adósságot keletkeztető fejlesztési céljai\"))","v":"Sióagárd Község Önkormányzata 2016. évi adósságot keletkeztető fejlesztési céljai"}]
[null,null,"Ezer forintban !"]
["Sor-szám","Fejlesztési cél leírása","Fejlesztés várható kiadása"]
["A","B","C"]
["1."]
["2."]
["3."]
["4.","ADÓSSÁGOT KELETKEZTETŐ ÜGYLETEK VÁRHATÓ EGYÜTTES ÖSSZEGE",{"$f":"SUM(C5:C7)","v":0}]

{"sheet":"6.sz.mell.","index":10,"n_rows":23,"n_cols":4,"rows_kept":23,"cut":false,"hidden":false,"merged":[[0,0,0,2]]}
["Beruházási (felhalmozási) kiadások előirányzata beruházásonként"]
[]
["Beruházás  megnevezése","Eredeti előirányzat","Módosított előirányzat","Teljesített"]
["A","C","D","E"]
[]
[]
[]
[]
[]
[]
[]
[]
[]
[]
[]
[]
[]
[]
[]
[]
[]
[]
["ÖSSZESEN:",null,{"$f":"SUM(C5:C22)","v":0},{"$f":"SUM(D5:D22)","v":0}]

{"sheet":"7.sz.mell.","index":11,"n_rows":24,"n_cols":4,"rows_kept":24,"cut":false,"hidden":false,"merged":[[0,0,0,2]]}
["Felújítási kiadások előirányzata felújításonként"]
[]
["Felújítás  megnevezése","Eredeti előirányzat",{"$f":"+'6.sz.mell.'!C3","v":"Módosított előirányzat"},"Teljesített"]
["A","C","D","E"]
["Konyha felújítása",null,12921946,12921946]
[]
[]
[]
[]
[]
[]
[]
[]
[]
[]
[]
[]
[]
[]
[]
[]
[]
[]
["ÖSSZESEN:",3389,{"$f":"SUM(C5:C23)","v":12921946},{"$f":"SUM(D5:D23)","v":12921946}]

{"sheet":"8. sz. mell. ","index":12,"n_rows":52,"n_cols":5,"rows_kept":52,"cut":false,"hidden":false,"merged":[[1,1,1,4],[24,1,24,4],[2,3,2,4],[25,3,25,4],[51,0,51,2],[49,3,49,4],[50,3,50,4],[46,0,46,4],[51,3,51,4],[48,3,48,4],[48,0,48,2],[49,0,49,2],[50,0,50,2]]}
[]
["EU-s projekt neve, azonosítója:"]
[null,null,null,"Ezer forintban!"]
["Források",{"$f":"CONCATENATE((LEFT(ÖSSZEFÜGGÉSEK!A5,4)),\".\")","v":"2016."},{"$f":"CONCATENATE((LEFT(ÖSSZEFÜGGÉSEK!A5,4))+1,\".\")","v":"2017."},{"$f":"CONCATENATE((LEFT(ÖSSZEFÜGGÉSEK!A5,4))+1,\". után\")","v":"2017. után"},"Összesen"]
["Saját erő",null,null,null,{"$f":"SUM(B5:D5)","v":0}]
["- saját erőből központi támogatás",null,null,null,0]
["EU-s forrás",null,null,null,0]
["Társfinanszírozás",null,null,null,0]
["Hitel",null,null,null,0]
["Egyéb forrás",null,null,null,0]
[null,null,null,null,0]
["Források összesen:",{"$f":"B5+SUM(B7:B11)","v":0},{"$f":"C5+SUM(C7:C11)","v":0},{"$f":"D5+SUM(D7:D11)","v":0},{"$f":"E5+SUM(E7:E11)","v":0}]
[]
["Kiadások, költségek",{"$f":"+B4","v":"2016."},{"$f":"+C4","v":"2017."},{"$f":"+D4","v":"2017. után"},"Összesen"]
["Személyi jellegű",null,null,null,{"$f":"SUM(B15:D15)","v":0}]
["Beruházások, beszerzések",null,null,null,0]
["Szolgáltatások igénybe vétele",null,null,null,0]
["Adminisztratív költségek",null,null,null,0]
[null,null,null,null,0]
[null,null,null,null,0]
[null,null,null,null,0]
["Összesen:",{"$f":"SUM(B15:B21)","v":0},{"$f":"SUM(C15:C21)","v":0},{"$f":"SUM(D15:D21)","v":0},{"$f":"SUM(E15:E21)","v":0}]
[]
[]
["EU-s projekt neve, azonosítója:"]
[null,null,null,"Ezer forintban!"]
["Források",{"$f":"+B14","v":"2016."},{"$f":"+C14","v":"2017."},{"$f":"+D14","v":"2017. után"},"Összesen"]
["Saját erő",null,null,null,{"$f":"SUM(B28:D28)","v":0}]
["- saját erőből központi támogatás",null,null,null,0]
["EU-s forrás",null,null,null,0]
["Társfinanszírozás",null,null,null,0]
["Hitel",null,null,null,0]
["Egyéb forrás",null,null,null,0]
[null,null,null,null,0]
["Források összesen:",{"$f":"B28+SUM(B30:B34)","v":0},{"$f":"C28+SUM(C30:C34)","v":0},{"$f":"D28+SUM(D30:D34)","v":0},{"$f":"E28+SUM(E30:E34)","v":0}]
[]
["Kiadások, költségek",{"$f":"+B27","v":"2016."},{"$f":"+C27","v":"2017."},{"$f":"+D27","v":"2017. után"},"Összesen"]
["Személyi jellegű",null,null,null,{"$f":"SUM(B38:D38)","v":0}]
["Beruházások, beszerzések",null,null,null,0]
["Szolgáltatások igénybe vétele",null,null,null,0]
["Adminisztratív költségek",null,null,null,0]
[null,null,null,null,0]
[null,null,null,null,0]
[null,null,null,null,0]
["Összesen:",{"$f":"SUM(B38:B44)","v":0},{"$f":"SUM(C38:C44)","v":0},{"$f":"SUM(D38:D44)","v":0},{"$f":"SUM(E38:E44)","v":0}]
[]
[{"$f":"+CONCATENATE(\"Önkormányzaton kívüli EU-s projektekhez történő hozzájárulás \",LEFT(ÖSSZEFÜGGÉSEK!A5,4),\". évi előirányzat\")","v":"Önkormányzaton kívüli EU-s projektekhez történő hozzájárulás 2016. évi előirányzat"}]
[]
["Támogatott neve",null,null,"Hozzájárulás  (E Ft)"]
[]
[]
["Összesen:",null,null,{"$f":"SUM(D50:E51)","v":0}]

{"sheet":"9.sz.mell","index":13,"n_rows":24,"n_cols":7,"rows_kept":24,"cut":false,"hidden":false,"merged":[[2,2,2,6],[4,2,4,5],[0,0,0,6]]}
["Adatszolgáltatás \naz elismert tartozásállományról"]
[]
["Költségvetési szerv neve:",null,"…………………………………"]
[]
["Költségvetési szerv számlaszáma:",null,"…………………………………"]
[]
["Éves eredeti kiadási előirányzat: …………… ezer Ft"]
["30 napon túli elismert tartozásállomány összesen: ……………… Ft"]
["Sor-szám","Tartozásállomány megnevezése ","30 nap \nalatti\nállomány","30-60 nap \nközötti \nállomány","60 napon \ntúli \nállomány","Át-ütemezett","Összesen:"]
["1.","Állammal szembeni tartozások",null,null,null,null,{"$f":"SUM(C10:F10)","v":0}]
["2.","Központi költségvetéssel szemben fennálló tartozás",null,null,null,null,{"$f":"SUM(C11:F11)","v":0}]
["3.","Elkülönített állami pénzalapokkal szembeni tartozás",null,null,null,null,0]
["4.","TB alapokkal szembeni tartozás",null,null,null,null,0]
["5.","Tartozásállomány önkormányzatok és intézmények felé",null,null,null,null,0]
["6.","Egyéb tartozásállomány",null,null,null,null,0]
["7.","Összesen:",{"$f":"SUM(C10:C15)","v":0},{"$f":"SUM(D10:D15)","v":0},{"$f":"SUM(E10:E15)","v":0},{"$f":"SUM(F10:F15)","v":0},0]
[]
[]
[]
[{"$f":"+CONCATENATE(\"......................, \",LEFT(ÖSSZEFÜGGÉSEK!A5,4),\". .......................... hó ..... nap\")","v":"......................, 2016. .......................... hó ..... nap"}]
[]
[]
[]
[null,null,null,"költségvetési szerv vezetője"]

{"sheet":"1.sz.táj.","index":14,"n_rows":19,"n_cols":9,"rows_kept":19,"cut":false,"hidden":false,"merged":[[0,7,0,8],[7,9,18,9],[1,0,1,8],[18,0,18,1],[3,8,4,8],[3,4,3,7],[3,0,4,0],[3,1,4,1],[3,2,4,2],[3,3,4,3]]}
[null,null,null,null,null,null,null,"1. sz. tájékoztató tábla"]
["Többéves kihatással járó döntések számszerűsítése évenkénti bontásban és összesítve célok szerint"]
[null,null,null,null,null,null,null,null," Ezer forintban !"]
["Sor-\nszám","Kötelezettség jogcíme","Köt. váll.\n éve",{"$f":"+CONCATENATE(LEFT(ÖSSZEFÜGGÉSEK!A5,4),\" előtti kifizetés\")","v":"2016 előtti kifizetés"},"Kiadás vonzata évenként",null,null,null,"Összesen"]
[null,null,null,null,{"$f":"+CONCATENATE(LEFT(ÖSSZEFÜGGÉSEK!A5,4),\".\")","v":"2016."},{"$f":"+CONCATENATE(LEFT(ÖSSZEFÜGGÉSEK!A5,4)+1,\".\")","v":"2017."},{"$f":"+CONCATENATE(LEFT(ÖSSZEFÜGGÉSEK!A5,4)+2,\".\")","v":"2018."},{"$f":"+CONCATENATE(LEFT(ÖSSZEFÜGGÉSEK!A5,4)+2,\".\",CHAR(10),\" után\")","v":"2018.\n után"}]
["A","B","C","D","E","F","G","H","I=(D+E+F+G+H)"]
["1.","Működési célú finanszírozási kiadások\n(hiteltörlesztés, értékpapír vásárlás, stb.)",null,{"$f":"+D8+D9","v":0},{"$f":"+E8+E9","v":0},{"$f":"+F8+F9","v":0},{"$f":"+G8+G9","v":0},{"$f":"+H8+H9","v":0},{"$f":"SUM(D7:H7)","v":0}]
["2.","............................",null,null,null,null,null,null,0]
["3.","............................",null,null,null,null,null,null,0]
["4.","Felhalmozási célú finanszírozási kiadások\n(hiteltörlesztés, értékpapír vásárlás, stb.)",null,{"$f":"+D11+D12","v":0},{"$f":"+E11+E12","v":0},{"$f":"+F11+F12","v":0},{"$f":"+G11+G12","v":0},{"$f":"+H11+H12","v":0},0]
["5.","............................",null,null,null,null,null,null,0]
["6.","............................",null,null,null,null,null,null,0]
["7.","Beruházási kiadások beruházásonként",null,{"$f":"+D14","v":0},{"$f":"+E14","v":0},{"$f":"+F14","v":0},{"$f":"+G14","v":0},{"$f":"+H14","v":0},0]
["8.","............................",null,null,null,null,null,null,0]
["9.","Felújítási kiadások felújításonként",null,{"$f":"+D16","v":0},{"$f":"+E16","v":0},{"$f":"+F16","v":0},{"$f":"+G16","v":0},{"$f":"+H16","v":0},0]
["10.","............................",null,null,null,null,null,null,0]
["11.","Egyéb (Pl.: garancia és kezességvállalás, stb.)",null,{"$f":"+D18","v":0},{"$f":"+E18","v":0},{"$f":"+F18","v":0},{"$f":"+G18","v":0},{"$f":"+H18","v":0},0]
["12.","............................",null,null,null,null,null,null,0]
["Összesen (1+4+7+9+11)",null,null,{"$f":"+D7+D10+D13+D15+D17","v":0},0,0,0,0,0]

{"sheet":"2.sz.táj","index":15,"n_rows":17,"n_cols":8,"rows_kept":17,"cut":false,"hidden":false,"merged":[[3,0,4,0],[3,1,4,1],[3,2,4,2],[3,3,4,3],[0,6,0,7]]}
[null,null,null,null,null,null,"2. sz. tájékoztató tábla"]
[null,"Az önkormányzat által felvett hitelállomány alakulása lejárat és eszközök szerinti bontásban"]
[null,null,null,null,null,null,null," Ezer forintban !"]
["Sor-\nszám","Hitel jellege","Felvétel\néve","Lejárat \néve ","Hitel állomány január 1-jén"]
[null,null,null,null,"2014.","2015.","2016.","2016. után"]
[1,2,3,4,5,6,7,8]
["1.","Működési célú ",null,null,{"$f":"SUM(E8:E11)","v":0},{"$f":"SUM(F8:F11)","v":0},{"$f":"SUM(G8:G11)","v":0},{"$f":"SUM(H8:H11)","v":0}]
["2.","Működési célú hitel"]
["3.","............................"]
["4.","............................"]
["5.","............................"]
["6.","Felhalmozási célú",null,null,{"$f":"SUM(E13:E16)","v":0},{"$f":"SUM(F13:F16)","v":0},{"$f":"SUM(G13:G16)","v":0},{"$f":"SUM(H13:H16)","v":0}]
["7.","Felhalmozási célú hitel"]
["8."]
["9.","............................"]
["10.","............................"]
["11.","Összesen (1+6)",null,null,{"$f":"E7+E12","v":0},{"$f":"F7+F12","v":0},{"$f":"G7+G12","v":0},{"$f":"H7+H12","v":0}]

{"sheet":"3.sz.táj","index":16,"n_rows":23,"n_cols":4,"rows_kept":23,"cut":false,"hidden":false,"merged":[[1,0,1,2]]}
[null,null,null,"3. sz. tájékoztató tábla"]
["Sióagárd Község Önkormányzata által biztosított támogatások"]
[]
["KIADÁSI JOGCÍMEK","Eredeti előirányzat","Módosított előirányzat ","Teljesítés"]
["Támogatásértékű kiadások",{"$f":"SUM(B6:B13)","v":0},{"$f":"SUM(C6:C13)","v":7651968},{"$f":"SUM(D6:D13)","v":7651968}]
["Óvoda működésére települési támogatás"]
["Óvodafenntartó Társulás működtetésére",null,5610000,5610000]
["Szekszárd  MJV -Orvosi ügyeleti díj",null,1147807,1147807]
["Paks Szoc. Feladatok ellátása",null,600648,600648]
["Bursa ösztöndíj támogatás",null,200000,200000]
["Tolna és Környéke Szociális alap",null,93513,93513]
[]
[]
["Áht kívülre átadott pénzeszközök,támogatások",null,2140000,{"$f":"SUM(D15:D21)","v":1490000}]
["Sióagárdi Sport Egyesület",null,null,600000]
["Sióagárdi Hagyományőrző Egyesület",null,null,200000]
["Sióagárdi Nyugdíjasok Egyesülete",null,null,100000]
["Sióagárd Horgász Egyesület",null,null,100000]
["Sióagárdi Polgárőr Egyesület",null,null,240000]
["Sióagárd Leányvárér Egyesület",null,null,100000]
["Sióagrád Jövője Alapítvány",null,null,150000]
[]
["ÖSSZESEN:",{"$f":"SUM(B5,B14)","v":0},{"$f":"SUM(C5,C14)","v":9791968},{"$f":"SUM(D5,D14)","v":9141968}]

{"sheet":"4.sz.táj","index":17,"n_rows":20,"n_cols":9,"rows_kept":20,"cut":false,"hidden":false,"merged":[[2,5,2,6],[2,7,3,7],[1,8,22,8],[0,1,0,6],[2,0,3,0],[2,1,3,1],[2,2,3,2],[2,3,3,3],[2,4,3,4]]}
[null,"Sióagárd Község Önkormányzata által nyújtott kölcsönök"]
[null,null,null,null,null,null,null," Ezer forintban !","4. tájékoztató tábla az /2017. önkormányzati rendelethez"]
["Sor-\nszám","Hitel, kölcsön ","Kölcsön-\nnyújtás\néve","Lejárat\néve ","Hitel, kölcsön állomány 2015. dec. 31-én","Hitel, kölcsön állomány december 31-én",null,"2017. után"]
[null,null,null,null,null,"2016.","2017."]
["A","B","C","D","E","F","G","H"]
["1.","Rövid lejáratú ",null,null,{"$f":"SUM(E7:E12)","v":0},{"$f":"SUM(F7:F12)","v":0},{"$f":"SUM(G7:G12)","v":0},{"$f":"SUM(H7:H12)","v":0}]
["2.",null,null,null,null,0,0,0]
["3.","............................"]
["4.","............................"]
["5.","............................"]
["6.","............................"]
["7.","............................"]
["8.","Hosszú lejáratú",null,null,{"$f":"SUM(E14:E19)","v":0},{"$f":"SUM(F14:F19)","v":0},{"$f":"SUM(G14:G19)","v":0},{"$f":"SUM(H14:H19)","v":0}]
["9.","............................"]
["10.","............................"]
["11.","............................"]
["12.","............................"]
["13.","............................"]
["14.","............................"]
["15.","Összesen (1+8)",null,null,{"$f":"E6+E13","v":0},{"$f":"F6+F13","v":0},{"$f":"G6+G13","v":0},{"$f":"H6+H13","v":0}]

{"sheet":"5.sz.táj","index":18,"n_rows":19,"n_cols":10,"rows_kept":19,"cut":false,"hidden":false,"merged":[[0,9,21,9],[14,0,14,8],[17,0,17,1],[18,0,18,1],[0,0,0,8],[1,7,1,8],[2,0,3,0],[2,1,3,1],[2,2,3,2],[2,3,2,7],[2,8,3,8],[5,0,5,8],[13,0,13,1]]}
[{"$f":"+CONCATENATE(\"Adósság állomány alakulása lejárat, eszközök, bel- és külföldi hitelezők szerinti bontásban \",CHAR(10),LEFT([1]ÖSSZEFÜGGÉSEK!A4,4),\". december 31-én\")","v":"Adósság állomány alakulása lejárat, eszközök, bel- és külföldi hitelezők szerinti bontásban \n2014. december 31-én"},null,null,null,null,null,null,null,null,"5. tájékoztató tábla az …./2017.(….) önkormányzati rendelethez"]
[]
["Sor-szám","Adósságállomány \neszközök szerint ","Nem lejárt","Lejárt",null,null,null,null,"Nem lejárt, lejárt összes tartozás"]
[null,null,null,"1-90 nap közötti","91-180 nap közötti","181-360 nap közötti","360 napon \ntúli","Összes lejárt tartozás"]
["A","B","C","D","E","F","G","H=(D+…+G)","I=(C+H)"]
["I. Belföldi hitelezők"]
["1.","Adóhatósággal szembeni tartozások",null,null,null,null,null,{"$f":"SUM(D7:G7)","v":0},{"$f":"C7+H7","v":0}]
["2.","Központi költségvetéssel szemben fennálló tartozás",null,null,null,null,null,0,0]
["3.","Elkülönített állami pénzalapokkal szembeni tartozás",null,null,null,null,null,0,0]
["4.","TB alapokkal szembeni tartozás",null,null,null,null,null,0,0]
["5.","Tartozásállomány önkormányzatok és intézmények felé",null,null,null,null,null,0,0]
["6.","Szállítói tartozás",null,null,null,null,null,0,0]
["7.","Egyéb adósság",0,null,null,null,null,0,0]
["Belföldi összesen:",null,{"$f":"SUM(C7:C13)","v":0},{"$f":"SUM(D7:D13)","v":0},0,0,0,0,0]
["II. Külföldi hitelezők"]
["1.","Külföldi szállítók",null,null,null,null,null,{"$f":"SUM(D16:G16)","v":0},{"$f":"C16+H16","v":0}]
["2.","Egyéb adósság",null,null,null,null,null,{"$f":"SUM(D17:G17)","v":0},{"$f":"C17+H17","v":0}]
["Külföldi összesen:",null,{"$f":"SUM(C16:C17)","v":0},0,0,0,0,0,0]
["Adósságállomány mindösszesen:",null,{"$f":"C14+C18","v":0},0,0,0,0,0,0]

{"sheet":"6.sz.táj","index":19,"n_rows":68,"n_cols":5,"rows_kept":68,"cut":false,"hidden":false,"merged":[[71,0,71,4],[72,0,72,4],[0,0,0,4],[1,2,1,4],[2,0,4,0],[2,1,4,1],[2,2,3,2],[2,3,3,3],[2,4,3,4],[4,2,4,4]]}
["Vagyonkimutatás a könyvviteli mérlegben szereplő eszközökről 2016. év"]
[]
["ESZKÖZÖK","Sorszám","Bruttó","értékcsökkenés","nettó érték"]
[]
[null,null,"állományi érték"]
["A ","B","C","D","E"]
[" I. Immateriális javak ","01.",385376,31366,355010]
["II. Tárgyi eszközök (03+08+13+18+23)","02.",{"$f":"+C9+C14+C19+C24+C29","v":905122556},{"$f":"+D9+D14+D19+D24+D29","v":457299882},{"$f":"+E9+E14+E19+E24+E29","v":891378580}]
["1. Ingatlanok és kapcsolódó vagyoni értékű jogok   (04+05+06+07)","03.",639559937,221777953,861337890]
["1.1. Forgalomképtelen ingatlanok és kapcsolódó vagyoni értékű jogok","04."]
["1.2. Nemzetgazdasági szempontból kiemelt jelentőségű ingatlanok és kapcsolódó \n       vagyoni értékű jogok","05.",null,null,{"$f":"C11-D11","v":0}]
["1.3. Korlátozottan forgalomképes ingatlanok és kapcsolódó vagyoni értékű jogok","06.",null,null,{"$f":"C12-D12","v":0}]
["1.4. Üzleti ingatlanok és kapcsolódó vagyoni értékű jogok","07."]
["2. Gépek, berendezések, felszerelések, járművek (09+10+11+12)","08.",18447655,1417278,17030377]
["2.1. Forgalomképtelen gépek, berendezések, felszerelések, járművek","09."]
["2.2. Nemzetgazdasági szempontból kiemelt jelentőségű gépek, berendezések, \n       felszerelések, járművek","10."]
["2.3. Korlátozottan forgalomképes gépek, berendezések, felszerelések, járművek","11.",null,null,{"$f":"C17-D17","v":0}]
["2.4. Üzleti gépek, berendezések, felszerelések, járművek","12.",null,null,{"$f":"C18-D18","v":0}]
["3. Tenyészállatok (14+15+16+17)","13.",{"$f":"+C20+C21+C22+C23","v":0},{"$f":"+D20+D21+D22+D23","v":0},{"$f":"+E20+E21+E22+E23","v":0}]
["3.1. Forgalomképtelen tenyészállatok","14.",null,0]
["3.2. Nemzetgazdasági szempontból kiemelt jelentőségű tenyészállatok","15."]
["3.3. Korlátozottan forgalomképes tenyészállatok","16."]
["3.4. Üzleti tenyészállatok","17."]
["4. Beruházások, felújítások (19+20+21+22)","18.",{"$f":"+C25+C26+C27+C28","v":247114964},{"$f":"+D25+D26+D27+D28","v":234104651},{"$f":"+E25+E26+E27+E28","v":13010313}]
["4.1. Forgalomképtelen beruházások, felújítások","19.",null,0]
["4.2. Nemzetgazdasági szempontból kiemelt jelentőségű beruházások, felújítások","20."]
["4.3. Korlátozottan forgalomképes beruházások, felújítások","21.",247114964,234104651,13010313]
["4.4. Üzleti beruházások, felújítások","22."]
["5. Tárgyi eszközök értékhelyesbítése (24+25+26+27)","23.",{"$f":"+C30+C31+C32+C33","v":0},{"$f":"+D30+D31+D32+D33","v":0},{"$f":"+E30+E31+E32+E33","v":0}]
["5.1. Forgalomképtelen tárgyi eszközök értékhelyesbítése","24."]
["5.2. Nemzetgazdasági szempontból kiemelt jelentőségű tárgyi eszközök \n       értékhelyesbítése","25."]
["5.3. Korlátozottan forgalomképes tárgyi eszközök értékhelyesbítése","26."]
["5.4. Üzleti tárgyi eszközök értékhelyesbítése","27."]
["III. Befektetett pénzügyi eszközök (29+34+39)","28.",{"$f":"+C35+C40+C45","v":550000},{"$f":"+D35+D40+D45","v":50000},{"$f":"+E35+E40+E45","v":500000}]
["1. Tartós részesedések (30+31+32+33)","29.",{"$f":"+C36+C37+C38+C39","v":500000},{"$f":"+D36+D37+D38+D39","v":0},{"$f":"+E36+E37+E38+E39","v":500000}]
["1.1. Forgalomképtelen tartós részesedések","30."]
["1.2. Nemzetgazdasági szempontból kiemelt jelentőségű tartós részesedések","31."]
["1.3. Korlátozottan forgalomképes tartós részesedések","32."]
["1.4. Üzleti tartós részesedések","33.",500000,null,500000]
["2. Tartós hitelviszonyt megtestesítő értékpapírok (35+36+37+38)","34.",50000,{"$f":"+D41+D42+D43+D44","v":50000},{"$f":"+E41+E42+E43+E44","v":0}]
["2.1. Forgalomképtelen tartós hitelviszonyt megtestesítő értékpapírok","35.",50000,50000]
["2.2. Nemzetgazdasági szempontból kiemelt jelentőségű tartós hitelviszonyt \n       megtestesítő értékpapírok","36."]
["2.3. Korlátozottan forgalomképes tartós hitelviszonyt megtestesítő értékpapírok","37."]
["2.4. Üzleti tartós hitelviszonyt megtestesítő értékpapírok","38."]
["3. Befektetett pénzügyi eszközök értékhelyesbítése (40+41+42+43)","39.",{"$f":"+C46+C47+C48+C49","v":0},{"$f":"+D46+D47+D48+D49","v":0},{"$f":"+E46+E47+E48+E49","v":0}]
["3.1. Forgalomképtelen befektetett pénzügyi eszközök értékhelyesbítése","40."]
["3.2. Nemzetgazdasági szempontból kiemelt jelentőségű befektetett pénzügyi \n       eszközök értékhelyesbítése","41."]
["3.3. Korlátozottan forgalomképes befektetett pénzügyi eszközök értékhelyesbítése","42."]
["3.4. Üzleti befektetett pénzügyi eszközök értékhelyesbítése","43."]
["IV. Koncesszióba, vagyonkezelésbe adott eszközök","44."]
["A) NEMZETI VAGYONBA TARTOZÓ BEFEKTETETT ESZKÖZÖK \n     (01+02+28+44)","45.",{"$f":"+C7+C8+C34+C50","v":906057932},{"$f":"+D7+D8+D34+D50","v":457381248},{"$f":"+E7+E8+E34+E50","v":892233590}]
["I. Készletek","46.",157512,-157512]
["II. Értékpapírok","47."]
["B) NEMZETI VAGYONBA TARTOZÓ FORGÓESZKÖZÖK (46+47)","48.",{"$f":"+C52+C53","v":157512},{"$f":"+D52+D53","v":-157512},{"$f":"+E52+E53","v":0}]
["I. Lekötött bankbetétek","49."]
["II. Pénztárak, csekkek, betétkönyvek","50.",0,null,0]
["III. Forintszámlák","51.",17180251,null,17425068]
["IV. Devizaszámlák","52."]
["C) PÉNZESZKÖZÖK (49+50+51+52)","53.",{"$f":"+C55+C56+C57+C58","v":17180251},{"$f":"+D55+D56+D57+D58","v":0},{"$f":"+E55+E56+E57+E58","v":17425068}]
["I. Költségvetési évben esedékes követelések","54.",14865897,null,9145537]
["II. Költségvetési évet követően esedékes követelések","55.",0,null,0]
["III. Követelés jellegű sajátos elszámolások","56.",6378036,null,5099549]
["D) KÖVETELÉSEK (54+55+56)","57.",{"$f":"+C60+C61+C62","v":21243933},{"$f":"+D60+D61+D62","v":0},{"$f":"+E60+E61+E62","v":14245086}]
["I. December havi illetmények, munkabérek elszámolása","58."]
["II. Utalványok, bérletek és más hasonló, készpénz-helyettesítő fizetési \n     eszköznek nem minősülő eszközök elszámolásai","59."]
["E) EGYÉB SAJÁTOS ESZKÖZOLDALI ELSZÁMOLÁSOK (58+59)","60.",{"$f":"+C64+C65","v":0},{"$f":"+D64+D65","v":0},4118829]
["F) AKTÍV IDŐBELI ELHATÁROLÁSOK","61.",0]
["ESZKÖZÖK ÖSSZESEN  (45+48+53+57+60+61)","62.",{"$f":"+C51+C54+C59+C63+C66+C67","v":944639628},{"$f":"+D51+D54+D59+D63+D66+D67","v":457223736},{"$f":"+E51+E54+E59+E63+E66+E67","v":928022573}]

{"sheet":"7.sz.táj","index":20,"n_rows":22,"n_cols":3,"rows_kept":22,"cut":false,"hidden":false,"merged":[[25,0,25,2],[26,0,26,2],[1,0,1,2],[2,0,2,2],[4,1,4,2],[5,0,6,0],[5,1,6,1],[5,2,6,2]]}
[null,null,"7. sz. tájékoztató tábla"]
["VAGYONKIMUTATÁS a könyvviteli mérlegben szereplő forrásokról\na könyvviteli mérlegben értékkel szereplő forrásokról"]
["2016. év"]
[]
[]
["FORRÁSOK","Sorszám","állományi \nérték"]
[]
["A","B","C"]
["I. Nemzeti vagyon induláskori értéke","01.",515462811]
["II. Nemzeti vagyon változásai","02.",0]
["III. Egyéb eszközök induláskori értéke és változásai","03.",8919295]
["IV. Felhalmozott eredmény","04.",56635459]
["V. Eszközök értékhelyesbítésének forrása","05."]
["VI. Mérleg szerinti eredmény","06.",-14039792]
["G) SAJÁT TŐKE (01+….+06)","07.",{"$f":"+C9+C10+C11+C12+C13+C14","v":566977773}]
["I. Költségvetési évben esedékes kötelezettségek","08.",20747117]
["II. Költségvetési évet követően esedékes kötelezettségek","09.",1421796]
["III. Kötelezettség jellegű sajátos elszámolások","10.",9540654]
["H) KÖTELEZETTSÉGEK (08+09+10)","11.",{"$f":"+C16+C17+C18","v":31709567}]
["I) KINCSTÁRI SZÁMLAVEZETÉSSEL KAPCSOLATOS ELSZÁMOLÁSOK","12."]
["J) PASSZÍV IDŐBELI ELHATÁROLÁSOK","13.",329335233]
["FORRÁSOK ÖSSZESEN  (07+11+12+13)","14.",{"$f":"+C15+C19+C20+C21","v":928022573}]

{"sheet":"8.sz.táj","index":21,"n_rows":40,"n_cols":4,"rows_kept":40,"cut":false,"hidden":false,"merged":[[1,0,1,3],[38,0,38,1],[40,2,40,3],[42,2,42,3]]}
[null,null,null,"8. sz. tájékoztató tábla"]
[{"$f":"+CONCATENATE(\"VAGYONKIMUTATÁS\",CHAR(10),\"az érték nélkül nyilvántartott eszközökről\",CHAR(10),LEFT([1]ÖSSZEFÜGGÉSEK!A4,4),\".\")","v":"VAGYONKIMUTATÁS\naz érték nélkül nyilvántartott eszközökről\n2014."}]
[]
["Megnevezés","Sorszám","Mennyiség\n(db)","Értéke\n(E Ft)"]
["A","B","C","D"]
["„0”-ra leírt eszközök","1."]
["Használatban lévő kisértékű immateriális javak","2."]
["Használatban lévő kisértékű tárgyi eszközök","3."]
["Készletek","4."]
["01 számlacsoportban nyilvántartott befektetett eszközök (6+…+9)","5.",null,{"$f":"+D11+D12+D13+D14","v":0}]
["Államháztartáson belüli vagyonkezelésbe adott eszközök","6."]
["Bérbe vett befektetett eszközök","7."]
["Letétbe, bizományba, üzemeltetésre átvett befektetett eszközök","8."]
[" PPP konstrukcióban használt befektetett eszközök","9."]
[" 02 számlacsoportban nyilvántartott készletek (11+…+13)","10.",null,{"$f":"+D16+D17+D18","v":0}]
[" Bérbe vett készletek","11."]
[" Letétbe bizományba átvett készletek","12."]
[" Intervenciós készletek","13."]
["Gyűjtemény, régészeti lelet* (15+…+17)","14.",null,{"$f":"+D20+D21+D22","v":0}]
["Közgyűjtemény","15."]
[" Saját gyűjteményben nyilvántartott kulturális javak","16."]
[" Régészeti lelet","17."]
[" Egyéb érték nélkül nyilvántartott eszközök","18."]
[null,"19."]
[null,"20."]
[null,"21."]
[null,"22."]
[null,"23."]
[null,"24."]
[null,"25."]
[null,"26."]
[null,"27."]
[null,"28."]
[null,"29."]
[null,"30."]
[null,"31."]
[null,"32."]
[null,"33."]
["Összesen (1+…+4)+5+10+14+(18+…+31):",null,null,{"$f":"+D6+D7+D8+D9+D10+D15+D19+D23+D24+D25+D26+D27+D28+D29+D30+D31+D32+D33+D34+D35+D36+D37+D38","v":0}]
["* Nvt. 1. § (2) bekezdés g) és h) pontja szerinti kulturális javak és régészeti eszközök"]

{"sheet":"9.sz.táj","index":22,"n_rows":22,"n_cols":6,"rows_kept":22,"cut":false,"hidden":false,"merged":[[0,5,21,5],[1,0,1,4],[21,0,21,1]]}
[null,null,null,null,"9. számú tájékoztató tábla","9. tájékoztató tábla az …./2017. (….) önkormányzati rendelethez"]
[{"$f":"+CONCATENATE(\"A ………Önkormányzat tulajdonában álló gazdálkodó szervezetek működéséből származó\",CHAR(10),\"kötelezettségek és részesedések alakulása a \",LEFT([1]ÖSSZEFÜGGÉSEK!A4,4),\". évben\")","v":"A ………Önkormányzat tulajdonában álló gazdálkodó szervezetek működéséből származó\nkötelezettségek és részesedések alakulása a 2014. évben"}]
[]
["Sorszám","Gazdálkodó szervezet megnevezése","Részesedés mértéke (%-ban)","Részesedés összege (Ft-ban)","Működésből származó kötelezettségek összege XII. 31-én\n (Ft-ban)"]
["1."]
["2."]
["3."]
["4."]
["5."]
["6."]
["7."]
["8."]
["9."]
["10."]
["11."]
["12."]
["13."]
["14."]
["15."]
["16."]
["17."]
["       ÖSSZESEN:",null,null,{"$f":"IF(SUM(D5:D21)=0,\"\",SUM(D5:D21))","v":""},{"$f":"IF(SUM(E5:E21)=0,\"\",SUM(E5:E21))","v":""}]

{"sheet":"10.sz.táj.","index":23,"n_rows":25,"n_cols":3,"rows_kept":25,"cut":false,"hidden":false,"merged":[[4,1,4,2]]}
[]
[]
[]
[]
[null,"MARADVÁNYKIMUTATÁS"]
[]
[]
[null,"Megnevezés","Önkormányzat"]
[1,"Alaptevékenység kölségvetési bevételei",120152989]
[2,"Alaptevékenység költségvetési kiadásai",121749426]
["I.","Alaptevékenység költségvetési egyenlege",{"$f":"C9-C10","v":-1596437}]
[3,"Alaptevékenység finanszírozási bevételei",15871541]
[4,"Alaptevékenység finanszírozási kiadásai",1203622]
["II.","Alaptevékenység finanszírozási egyenlege",{"$f":"C12-C13","v":14667919}]
["A)","Alaptevékenység maradványa",{"$f":"C11+C14","v":13071482}]
[5,"Vállalkozási tevékenység költségvetési bevételei",0]
[6,"Vállalkozási tevékenység költségvetési kiadásai ",0]
["III.","Vállalkozási tevékenység költségvetési egyenlege",0]
[7,"Vállalkozási tevékenység finanszírozási bevételei",0]
[8,"Vállalkozási tevékenység finanszírozási kiadásai",0]
["IV.","Vállalkozási tevékenység finanszírozási egyenlege",0]
["B)","Vállakozási tevékenység maradványa",0]
["C)","Összes maradvány",13071482]
["D)","Alaptevékenység kötelezettségvállalással terhelt maradványa"]
["E)","Alaptevékenység szabad maradványa",0]